Cogmind - Beta 14 @@@ ROGUE MODE // 2024.11.01 @ 14:33:31 Player: Some Pennies Result: Self-destructed Performance ------------- Evolutions (9) 4500 Regions Visited (34) 6800 Robots Destroyed (351) 1755 Value Destroyed (14747) 14747 Prototype IDs (304) 6080 Alien Tech Used (12) 2400 Bonus (44156) 44156 TOTAL SCORE: 80438 Bonus ------- High Alert Combat Kills 5466 Follower Combat Kills 2575 Awakened Behemoth Slayer 1000 Network Hubs Disabled 800 Met Imprinter 300 Met Zhirov 300 Met Warlord at Base 500 MAIN.C Attacked Warlord 500 Built Enhanced Grunts 300 A7 Reached Mainframe 300 Met R17 at Cetus 500 Used Core Reset Matrix 3000 Met R17 at Research 2000 Met Warlord at Research 2000 Met Sigix 2000 Destroyed MAIN.C Guards 500 Met MAIN.C 5000 Destroyed MAIN.C Shell 5000 Destroyed MAIN.C 10000 Met Warlord at Command 2000 Met Architect 300 Destroyed A8 300 Destroyed A6 400 Friendly Fire -885 Cogmind --------- Core Integrity 292/1850 Matter 197/300 Energy 751/840 System Corruption 1% Temperature Cool (0) Movement Treading (160) Location -1/Access_0 Parts ------- > --- POWER (3) -------- Zero-point Reactor Vortex Chain Reactor > --- PROPULSION (6) --- Enhanced Armored Heavy Treads Enhanced Armored Heavy Treads > --- UTILITY (15) ----- Experimental Cooling System (fused) Large Storage Unit Long-range Terrain Scanner Advanced Terrain Scan Processor Experimental Targeting Computer Experimental Targeting Computer Experimental Core Analyzer Advanced Kinecellerator Quantum Capacitor Advanced Weapon Cycler SHELL Armor AEGIS Remote Shield > --- WEAPON (2) ------- Compact HERF Cannon > --- INVENTORY (15) --- Experimental Cooling System Advanced Energy Well (500) Matter Compressor (0) Thermal Barrier Experimental EM Disruption Field Long-range Tractor Beam Enhanced Nova Cannon Blast Cannon Blast Cannon Peak State ------------ > --- POWER ------------ Zero-point Reactor Vortex Chain Reactor > --- PROPULSION ------- Enhanced Armored Heavy Treads Enhanced Armored Heavy Treads High-density Centrium Heavy Treads > --- UTILITY ---------- Experimental Cooling System Large Storage Unit Advanced Terrain Scan Processor Experimental Targeting Computer Experimental Targeting Computer Experimental Core Analyzer Advanced Weapon Cycler Experimental Phase Shifter SHELL Armor Thermal Barrier Experimental EM Disruption Field AEGIS Remote Shield Experimental System Purifier > --- WEAPON ----------- Multirail Multirail > --- INVENTORY -------- Experimental Cooling System Experimental Energy Well Matter Compressor Long-range Terrain Scanner Matter Filter Improved Utility Shielding Graphene Brace Improved Focal Shield Long-range Tractor Beam Integrity Redistributor Integrity Redistributor Spacefold Activator Compact HERF Cannon [Rating: 248] Favorites ----------- Power Zero-point Reactor Engine Ion Engine Power Core Fission Core Reactor Zero-point Reactor Propulsion Light Treads Treads Light Treads Leg Advanced Myomer Leg Wheel Subdweller Monowheel Hover Unit Gyrokinetic Inverter Flight Unit Flightbrick Utility Large Storage Unit Device Seismic Detector Storage Large Storage Unit Processor Experimental Core Analyzer Hackware Improved Hacking Suite Protection SHELL Armor Artifact Spacefold Activator Weapon Enhanced Nova Cannon Energy Gun Subdweller Laser Energy Cannon Enhanced Nova Cannon Ballistic Gun Assault Rifle Ballistic Cannon Battle Cannon Launcher Improved Proton Missile Launcher Special Weapon Multitool Impact Weapon Powered Hammer Slashing Weapon Sigix Broadsword Piercing Weapon Spear Special Melee Weapon Advanced Datajack Build | -11 -10 -10 -8 -8 -7 -7 -7 -7 -6 -6 -6 -6 -6 -6 -5 -5 -5 -5 -4 -4 -4 -4 -4 -4 -4 -3 -3 -3 -3 -2 -2 -1 -1 -1 ------- Run | Yrd Mat Sub Mat Sto Fac Low Low Zio Pro Fac Ext Cet Arc Hub Fac Upp Upp War Pro Fac Was Fac Upp Upp Zhi Pro Res Qua Sec Res Tes Acc Com Ac0 Slots Evolved 18 | . . . 4 . 2 . . . . 2 . . . . 2 . . . . 2 . . . . . . 2 . . 2 . 2 . . Power 2 | . . . . . . . . . . . . . . . . . . . . . . . . . . . . . . 1 . 1 . . Propulsion 4 | . . . 2 . 1 . . . . 1 . . . . . . . . . . . . . . . . . . . . . . . . Utility 12 | . . . 2 . 1 . . . . 1 . . . . 2 . . . . 2 . . . . . . 2 . . 1 . 1 . . Weapon . | . . . . . . . . . . . . . . . . . . . . . . . . . . . . . . . . . . . Parts Attached 909 | 7 8 24 11 66 38 1 4 6 14 53 12 7 12 15 50 4 6 14 3 26 1 76 7 . 6 . 20 25 34 70 34 27 181 47 Power 50 | 1 1 3 . 5 2 . . . 2 2 . . . 1 3 . . . . . . 5 . . 4 . 1 2 1 1 1 5 10 . Engine 10 | 1 1 3 . 2 . . . . . . . . . . . . . . . . . 1 . . . . . . . . . 2 . . Core 22 | . . . . 3 2 . . . 2 2 . . . 1 3 . . . . . . 3 . . 3 . . 1 . 1 . 1 . . Reactor 18 | . . . . . . . . . . . . . . . . . . . . . . 1 . . 1 . 1 1 1 . 1 2 10 . Propulsion 123 | 2 1 4 4 26 2 . . . . 4 . . 1 . 4 . . 2 . 8 . 13 . . . . 3 1 2 21 4 2 19 . Treads 47 | 2 1 3 1 24 . . . . . . . . . . . . . . . . . . . . . . . . . 4 . . 12 . Leg 1 | . . . . . . . . . . . . . . . 1 . . . . . . . . . . . . . . . . . . . Wheel 5 | . . 1 3 . . . . . . . . . . . . . . . . . . . . . . . . . . . . 1 . . Hover 2 | . . . . . . . . . . . . . . . . . . . . 1 . . . . . . . . . . . . 1 . Flight 68 | . . . . 2 2 . . . . 4 . . 1 . 3 . . 2 . 7 . 13 . . . . 3 1 2 17 4 1 6 . Utility 435 | 2 4 5 4 10 15 1 2 5 6 30 5 3 4 6 27 2 2 8 1 10 1 36 5 . 2 . 13 14 17 39 15 16 87 38 Device 255 | 1 1 2 3 4 6 . . 3 3 17 4 1 . 3 6 . 1 3 1 6 . 21 2 . . . 5 7 13 32 7 11 61 31 Storage 17 | 1 1 1 . . 1 . . . . . . . . . 2 . . . . . . 2 . . . . 1 . . . . 3 5 . Processor 27 | . . . 1 1 2 . . . . 2 . . . . 1 . . 2 . 1 . . . . . . 3 1 . 3 2 . 8 . Hackware 35 | . 1 . . . 3 . 1 . . 4 . . 4 2 9 . . 1 . 1 1 4 . . . . 3 . 1 . . . . . Protection 96 | . 1 2 . 5 3 1 1 2 3 7 1 2 . 1 9 2 1 2 . 2 . 9 3 . 2 . 1 6 3 4 5 2 9 7 Artifact 5 | . . . . . . . . . . . . . . . . . . . . . . . . . . . . . . . 1 . 4 . Weapon 301 | 2 2 12 3 25 19 . 2 1 6 17 7 4 7 8 16 2 4 4 2 8 . 22 2 . . . 3 8 14 9 14 4 65 9 Energy Gun 15 | . . 4 . 4 . . . . . . . 1 . . . . . . . . . . . . . . . . . . 1 . 5 . Energy Cannon 83 | . . . 2 10 1 . . . 1 4 1 . 1 3 2 . 1 1 . 3 . 2 . . . . 2 2 3 1 4 2 31 6 Ballistic Gun 21 | 2 2 5 1 4 . . . . . 1 . 1 . . 1 . . . . . . . . . . . . . 1 . . . 3 . Ballistic Cannon 14 | . . 1 . . . . . . . . . . . . . . . . . . . . . . . . . . . . 2 . 8 3 Launcher 26 | . . . . 6 4 . . . . 1 . . 1 . . . 1 . 1 1 . . . . . . . . 1 . . . 10 . Special Weapon 16 | . . . . . 2 . . . . 4 1 . . 1 4 . . . . . . . . . . . . . 1 3 . . . . Impact Weapon 25 | . . . . . . . . . . . 2 2 1 2 3 1 2 2 1 . . 9 . . . . . . . . . . . . Slashing Weapon 43 | . . 2 . . 5 . . . . . . . . . . . . . . 2 . 3 . . . . . 4 7 4 7 2 7 . Piercing Weapon 25 | . . . . . 2 . 1 1 4 4 1 . 1 . 1 1 . 1 . . . 4 1 . . . . . 1 1 . . 1 . Special Melee Weapon 33 | . . . . 1 5 . 1 . 1 3 2 . 3 2 5 . . . . 2 . 4 1 . . . 1 2 . . . . . . Unidentified Prototypes 72 | . . . . 8 1 . 1 1 . 2 . 3 . 2 3 1 . 8 . . . 3 . . 2 . 3 2 4 8 12 4 4 . Corrupted Parts 4 | . . . . . . . . . . . . . . . . . . . . . . 1 . . . . . . . . . . 3 . System Corruption 26 | . . . . . . . . . . . . . . . . . . . . . . 8 . . . . . . . . . . 18 . Parts Lost 47 | . . 10 1 8 1 . . . 1 . . . . 2 3 . . . 2 . 1 7 . . . . . . 4 . 1 . 2 4 Power 3 | . . 1 . 1 . . . . . . . . . . . . . . . . . 1 . . . . . . . . . . . . Propulsion 10 | . . 3 1 3 . . . . . . . . . . . . . . . . . 2 . . . . . . . . . . . 1 Utility 26 | . . 3 . 3 . . . . 1 . . . . 2 3 . . . 1 . 1 2 . . . . . . 4 . 1 . 2 3 Weapon 8 | . . 3 . 1 1 . . . . . . . . . . . . . 1 . . 2 . . . . . . . . . . . . Highest Loss Streak 4 | . . 4 1 3 1 . . . 1 . . . . 1 1 . . . 2 . 1 2 . . . . . . 2 . 1 . 2 3 To Critical Strikes 1 | . . . . . . . . . . . . . . . . . . . . . . . . . . . . . . . . . . 1 Average Slot Usage (%) 84 | . 99 99 99 97 75 81 81 82 75 78 83 83 84 83 78 78 78 80 80 85 78 82 81 85 82 80 80 78 75 85 90 86 75 72 Engine 3 | . 14 14 9 3 . . . . . . . . . . . . . . . . . . . . . . . . . . . . . . Core 2 | . . . . 5 6 6 5 5 5 5 5 5 5 5 4 5 5 5 5 4 1 3 5 5 4 5 2 . . . . . . . Reactor 2 | . . . . . . . . . . . . . . . . . . . . . . . . . . . 1 3 3 4 4 3 8 7 Treads 10 | . 27 26 16 35 . . . . . . . . . . . . . . . . . . . . . . . . . . . . 10 10 Flight 6 | . . . . . 11 12 11 11 11 14 15 15 15 15 9 10 10 12 15 18 15 15 15 15 15 15 13 13 12 18 25 23 1 . Device 14 | . 12 8 18 19 11 6 5 9 10 10 10 10 10 10 5 . . . . 9 10 6 5 5 5 5 6 12 22 27 25 23 24 21 Storage 6 | . 14 14 9 9 6 6 5 5 5 5 5 5 5 5 4 5 5 5 5 4 1 4 5 5 5 5 4 4 4 4 4 3 4 3 Processor 6 | . . . 8 1 11 6 5 5 5 9 10 10 10 10 6 . . . . . . . . . . . 3 3 4 4 8 7 10 15 Hackware 11 | . . . . . 12 18 18 23 23 21 21 21 21 21 32 42 42 42 42 35 33 37 40 40 37 35 35 27 20 13 10 7 . . Protection 4 | . . 5 . 4 2 12 11 6 4 4 5 5 5 3 3 5 4 4 2 5 6 5 4 5 6 10 5 3 . 7 7 7 3 4 Energy Gun 1 | . . 11 . 1 . . . . . . . . . . . . . . . . . . . . . . . . . . . . . . Energy Cannon 2 | . . . 9 10 . . . . . . . . 3 . . . . . . . . . . . . . . . . . . . 4 4 Ballistic Gun 3 | . 28 12 8 5 . . . . . . . . . . . . . . . . . . . . . . . . . . . . . . Special Melee Weapon 1 | . . . . . 5 . 1 . . . 4 5 1 4 4 5 5 5 3 1 5 3 5 5 3 . . 1 . . . . . . Peak Build Rating 248 | 8 11 22 24 34 77 75 79 89 79 98 102 99 110 106 124 127 124 138 134 131 120 129 124 123 127 118 155 180 183 204 223 222 248 236 Average Rating 122 | 6 8 15 23 27 71 75 75 79 75 88 95 95 105 103 114 123 122 127 128 120 113 119 116 123 121 118 139 167 173 187 198 215 226 230 On Entrance 107 | . 8 11 20 24 34 75 75 79 79 76 93 95 96 105 99 123 123 123 133 123 120 109 113 123 123 118 118 152 178 167 197 213 214 236 Naked Turns . | . . . . . . . . . . . . . . . . . . . . . . . . . . . . . . . . . . . Heaviest Build 168 | 15 92 96 102 107 27 24 24 24 29 35 29 28 42 32 44 33 38 33 34 48 48 42 45 45 46 45 60 63 67 71 63 69 167 168 Greatest Support 250 | 40 40 40 40 89 29 29 29 29 29 35 35 35 35 34 37 37 37 40 40 55 55 59 45 45 45 45 61 61 66 90 69 69 250 250 Greatest Overweight (x) 13 | . 2 4 5 2 . . . . . 1 . . 13 . 1 . 1 . . . 2 1 . . 1 . 3 1 1 1 1 1 1 . Average Overweight (x) . | . 1 2 3 1 . . . . . . . . 7 . . . . . . . . . . . . . . . . . . . . . Largest Inventory Capacity 25 | 8 25 25 25 25 25 10 10 10 10 10 10 10 10 10 15 15 15 15 15 15 15 15 15 15 15 15 15 15 15 15 15 15 15 15 Average Capacity 15 | 7 16 25 25 25 10 10 10 10 10 10 10 10 10 10 12 15 15 15 15 15 9 12 15 15 15 15 15 15 15 15 15 15 15 15 Most Carried 25 | 7 22 25 25 25 25 10 10 10 10 10 10 10 10 10 15 15 15 15 15 15 15 15 15 14 15 15 15 15 15 15 15 15 15 15 Average Carried 14 | 3 11 23 23 24 9 10 9 9 9 9 10 10 9 9 10 15 15 15 14 14 9 11 14 14 14 15 14 14 14 14 14 14 13 12 Final Capacity 25 | 8 25 25 25 25 10 10 10 10 10 10 10 10 10 10 15 15 15 15 15 15 5 15 15 15 15 15 15 15 15 15 15 15 15 15 Final Carried 25 | 6 21 25 25 25 10 10 9 10 10 10 10 10 10 9 15 15 15 15 14 15 5 15 14 14 15 15 14 15 14 15 15 15 15 11 Class Distribution -------------------- 29% | Alien-Mutant 21% | Mutant 14% | Wizard-Mutant 6% | Commander-Mutant 6% | Hacker-Sprinter 6% | Scavenger-Mutant 5% | Hacker-Mutant 4% | Alien-Sprinter Dominant Class ---------------- Mutant | -10/Materials Mutant | -10/Subcaves Scavenger-Mutant | -8/Materials Scavenger-Mutant | -8/Storage Hacker-Mutant | -7/Factory Hacker-Mutant | -7/Lower Caves Hacker-Mutant | -7/Lower Caves Hacker-Mutant | -7/Zion Hacker-Mutant | -6/Proximity Caves Hacker-Sprinter | -6/Factory Hacker-Sprinter | -6/Extension Commander-Sprinter | -6/Cetus Commander-Mutant | -6/Archives Hacker-Sprinter | -6/Hub_04(d) Wizard-Mutant | -5/Factory Wizard-Mutant | -5/Upper Caves Wizard-Mutant | -5/Upper Caves Wizard-Sprinter | -5/Warlord Wizard-Sprinter | -4/Proximity Caves Wizard-Sprinter | -4/Factory Wizard-Mutant | -4/Waste Wizard-Mutant | -4/Factory Wizard-Mutant | -4/Upper Caves Wizard-Mutant | -4/Upper Caves Wizard-Mutant | -4/Zhirov Wizard-Mutant | -3/Proximity Caves Wizard-Mutant | -3/Research Wizard-Mutant | -3/Quarantine Wizard-Mutant | -3/Section 7 Alien-Sprinter | -2/Research Alien-Sprinter | -2/Testing Alien-Sprinter | -1/Access Alien-Mutant | -1/Command Alien-Mutant | -1/Access_0 Resources | -11 -10 -10 -8 -8 -7 -7 -7 -7 -6 -6 -6 -6 -6 -6 -5 -5 -5 -5 -4 -4 -4 -4 -4 -4 -4 -3 -3 -3 -3 -2 -2 -1 -1 -1 ----------- Run | Yrd Mat Sub Mat Sto Fac Low Low Zio Pro Fac Ext Cet Arc Hub Fac Upp Upp War Pro Fac Was Fac Upp Upp Zhi Pro Res Qua Sec Res Tes Acc Com Ac0 Matter Collected 12144 | 354 410 321 113 1089 490 60 20 52 183 515 190 70 120 158 484 83 126 . 48 324 . 770 29 65 126 . 150 174 446 358 122 215 1957 2522 Remotely 1595 | . . . . . . . . . . . . . . . . . . . . . . . . . . . . . . . . . 5 1590 Salvage Created 22655 | 186 556 453 171 2249 806 83 132 . 195 1249 855 . 278 317 417 100 101 . 48 492 . 982 29 . 190 . 423 66 106 634 122 637 8646 2132 Parts 1061 | 14 50 28 5 134 39 5 2 . 14 44 36 . 23 15 12 6 4 . . 21 . 46 2 . 3 . 12 . 8 22 5 32 371 108 Haulers Intercepted 30 | . 1 . 2 5 3 . . . . 3 1 . . 1 3 . . . . 2 . 2 . . . . 2 . . 2 . 3 . . Recyclers Shooed 6 | . . . . 1 . . . . . 1 1 . . . . . . . . . . 1 . . . . 1 . . . . . 1 . Parts Field Recycled . | . . . . . . . . . . . . . . . . . . . . . . . . . . . . . . . . . . . Retrieved Matter . | . . . . . . . . . . . . . . . . . . . . . . . . . . . . . . . . . . . Parts Self-Destructed 39 | . . 11 . . . . 10 . 8 . . . . . . 4 . . 2 . . . 1 . 3 . . . . . . . . . Prevented 6 | . . . . . . . . . . . . . . . . . 5 . . . . . 1 . . . . . . . . . . . Kills | -11 -10 -10 -8 -8 -7 -7 -7 -7 -6 -6 -6 -6 -6 -6 -5 -5 -5 -5 -4 -4 -4 -4 -4 -4 -4 -3 -3 -3 -3 -2 -2 -1 -1 -1 ------- Run | Yrd Mat Sub Mat Sto Fac Low Low Zio Pro Fac Ext Cet Arc Hub Fac Upp Upp War Pro Fac Was Fac Upp Upp Zhi Pro Res Qua Sec Res Tes Acc Com Ac0 Combat Hostiles Destroyed 205 | . 14 11 1 37 7 . . . 3 4 5 . . 1 1 1 1 . 2 5 . 6 . . . . 1 1 2 1 . 2 77 22 Melee 28 | . . . . . . . . . 3 3 3 . . . . . . . 2 1 . 3 . . . . . 1 1 . . 2 9 . Guns 31 | . 14 9 . 8 . . . . . . . . . . . . . . . . . . . . . . . . . . . . . . Cannons 44 | . . 2 1 18 . . . . . . . . . . . . . . . 1 . . . . . . . . . . . . 19 3 AOE 34 | . . . . 11 7 . . . . . . . . 1 . . . . . 3 . . . . . . . . . . . . 12 . Classes Destroyed 25 | 3 6 2 1 5 1 1 . . 2 . . . . 1 . . . . 1 . . 1 . . . . . . . . . . 1 . Worker 28 | 2 3 . . 4 3 . . . . . . . . 2 1 . . . . 1 . . . . . . . . . 2 . 3 7 . Builder 14 | . 1 . . 2 4 . . . . . . . . 1 . . . . . 1 . 3 . . . . . . . . 1 1 . . Tunneler 6 | 4 1 . . . 1 . . . . . . . . . . . . . . . . . . . . . . . . . . . . . Hauler 30 | . 1 . 2 5 3 . . . . 3 1 . . 1 3 . . . . 2 . 2 . . . . 2 . . 2 . 3 . . Recycler 33 | 1 . . . 3 7 . . . . 5 2 . . . . . . . . 1 . 3 . . . . 1 . . 2 1 1 6 . Minesweeper 4 | . . . . . . . . . 1 . . . . . . . 1 . 1 . . . 1 . . . . . . . . . . . Mechanic 5 | . . . . 1 . . . . . 1 . . . . . . . . . . . . . . . . . . . . . . 3 . Operator 13 | . 1 . . 1 . . . . . 1 1 . 8 . . . . . . . . . . . . . . . . . . 1 . . Drone 4 | . . . . . . . . . . . . . . . . . . . 2 . . . . . . . . . 1 . . 1 . . Watcher 20 | . 3 . . 2 1 . . . . 2 3 . . 3 1 . . . . . . . . . . . . . . . . . 5 . Swarmer 28 | . 8 . . 6 6 . . . 2 2 . . . . . . . . . 4 . . . . . . . . . . . . . . Cutter 4 | . . . . . . . . . . . . . . . . . . . . . . 4 . . . . . . . . . . . . Saboteur 2 | . . . . . . . . . . . . . . . . . . . . . . . . . . . . . . . . . 2 . Grunt 45 | . 6 . . 10 . . . . . . 2 . . . . . 1 . . . . . . . . . . . . . . 1 25 . Brawler 10 | . . . . 4 . . . . . . . . . . . . . . . . . . . . . . . . . . . . 6 . Duelist 10 | . . . . 1 . . . . . . . . . . . . . . . . . . . . . . . . . . . . 9 . Protector 6 | . . . . 2 . . . . . . . . . . . . . . . . . . . . . . . . . . . . 4 . Sentry 16 | . . . . 14 . . . . . . . . . . . . . . . . . . . . . . . . . . . . 2 . Hunter 8 | . . . 1 . . . . . . . . . . . . . . . . . . . . . . . . 1 . . . . 6 . Programmer 21 | . . . . . 1 . . . . 1 1 . . . . . . . . 1 . . . . . . . . . . . . 17 . Heavy 2 | . . . . . . . . . . . . . . 1 . . . . . . . . . . . . . . . . . . 1 . Behemoth 12 | . . . . . . . . . 1 1 2 . . . 1 1 . . . . . 2 . . . . 1 . 1 1 . . 1 . M Guard 2 | . . . . . . . . . . . . . . . . . . . . . . . . . . . . . . . . . 2 . Enhanced Grunt 17 | . . . . . . . . . . . . . . . . . . . . . . . . . . . . . . . . . . 17 Enhanced Sentry 1 | . . . . . . . . . . . . . . . . . . . . . . . . . . . . . . . . . . 1 Enhanced Hunter 2 | . . . . . . . . . . . . . . . . . . . . . . . . . . . . . . . . . . 2 Combat Programmer 2 | . . . . . . . . . . . . . . . . . . . . . . . . . . . . . . . . . 2 . Artisan 2 | . . 2 . . . . . . . . . . . . . . . . . . . . . . . . . . . . . . . . Subdweller 11 | . . 11 . . . . . . . . . . . . . . . . . . . . . . . . . . . . . . . . Packrat 2 | . . . . . . . 2 . . . . . . . . . . . . . . . . . . . . . . . . . . . Samaritan 2 | . . . . . . 2 . . . . . . . . . . . . . . . . . . . . . . . . . . . . Best Kill Streak 16 | 2 9 2 1 6 11 . . . 2 3 3 . 5 2 2 1 1 . 2 5 . 3 1 . . . 2 1 1 4 1 4 16 3 Combat Bots Only 15 | . 6 2 1 4 6 . . . 2 1 2 . . 1 1 1 1 . 2 4 . 3 . . . . 1 1 1 1 . 1 15 3 Max Kills in Single Turn 5 | 1 2 1 1 4 5 1 1 . 1 1 1 . 1 2 1 1 1 . 1 4 . 1 1 . . . 1 1 1 1 1 1 4 1 Gunslinging 1 | . 1 . . . . . . . . . . . . . . . . . . . . . . . . . . . . . . . . . Exploded 4 | . . . . 4 3 . . . . . . . . 1 . . . . . 3 . . . . . . . . . . . . 3 . Melee 1 | . . . . . . . . . 1 1 1 . . . . . . . 1 1 . 1 . . . . . 1 1 . . 1 1 . Uniques/NPCs Destroyed 2 | . . . . . . . . . . . . . . . . . . . . . . . . . . . . . . . . . . 2 A8 (-1/Access_0) A6 (-1/Access_0) Combat | -11 -10 -10 -8 -8 -7 -7 -7 -7 -6 -6 -6 -6 -6 -6 -5 -5 -5 -5 -4 -4 -4 -4 -4 -4 -4 -3 -3 -3 -3 -2 -2 -1 -1 -1 -------- Run | Yrd Mat Sub Mat Sto Fac Low Low Zio Pro Fac Ext Cet Arc Hub Fac Upp Upp War Pro Fac Was Fac Upp Upp Zhi Pro Res Qua Sec Res Tes Acc Com Ac0 Hostile Shots Fired 2667 | . 68 67 8 185 64 20 10 . 54 44 18 . 4 70 126 3 14 . 45 76 11 272 42 13 . 5 9 70 162 3 25 104 254 821 Missed 1250 | . 20 12 2 48 38 12 4 . 27 18 9 . 4 48 65 2 6 . 23 38 6 174 20 10 . 4 7 43 85 3 12 63 99 348 Damage Taken 25459 | . 454 1352 223 2192 311 80 124 . 563 523 219 . . 641 1212 22 171 . 438 655 135 1903 422 69 . 20 104 594 1387 85 398 818 3112 7232 Core 3044 | . 89 123 37 252 21 11 . . 51 40 6 . . 68 120 . 20 . 79 130 112 342 58 69 . . . 18 164 . 122 114 192 806 Absorbed by Shields 9097 | . . . . . . . . . . . 19 . . . . . . . . . . . . . . . . . 415 . . . 1698 6965 Reduced by Siege Mode 827 | . . . . . . . . . . . . . . . . . . . . . . . . . . . . . . . . . 209 618 Redirected to Shielding 2187 | . . . . . 41 39 67 . 94 189 134 . . 136 397 19 94 . 83 24 . 176 . . . . 45 170 90 . . 41 82 266 Ignored by Resistances 2435 | . . . . . . . . . . . . . . . . . . . . . . . . . . . . . . . . . 992 1443 Regen/Repaired (Parts) 8063 | . 113 . . . . . . 47 . 62 . . . . 538 . . 26 . . . 260 . . . . . 426 711 91 108 551 2463 2667 Core Remaining (%) 70 | 100 . 15 . 47 . . . . 88 . . . . 86 . . . . 78 . . . . . . 38 . . 88 . 92 . . . Volleys Fired 1133 | 14 64 54 14 118 8 . . . 3 9 6 . . 4 2 . 12 1 . 9 . 5 . . . . 18 8 10 . 7 1 411 355 Largest 2 | 2 2 2 2 2 1 . . . 1 1 1 . . 1 1 . 1 1 . 1 . 1 . . . . 1 1 1 . 1 1 2 1 Hottest 240 | 40 40 120 160 160 45 . . . 80 90 90 . . 90 90 . 43 90 . 90 . 90 . . . . 120 120 120 . 120 120 240 120 Shots Fired 1374 | 28 128 91 26 217 8 . . . 3 9 6 . . 4 2 . 12 1 . 9 . 5 . . . . 18 8 10 . 7 1 426 355 Gun 455 | 28 128 76 8 86 . . . . . . . . . . . . . . . . . . . . . . . . . . . . 129 . Cannon 862 | . . 15 18 121 . . . . 3 9 6 . . 4 2 . 8 1 . 8 . 5 . . . . 18 8 10 . 7 1 263 355 Launcher 57 | . . . . 10 8 . . . . . . . . . . . 4 . . 1 . . . . . . . . . . . . 34 . Special . | . . . . . . . . . . . . . . . . . . . . . . . . . . . . . . . . . . . Kinetic 367 | 28 128 43 8 77 . . . . . . . . . . . . . . . . . . . . . . . . . . . . 20 63 Thermal 746 | . . 48 18 131 . . . . 3 9 6 . . 4 2 . 8 1 . 8 . 5 . . . . 18 8 10 . 7 1 255 204 Explosive 18 | . . . . 9 8 . . . . . . . . . . . . . . 1 . . . . . . . . . . . . . . Electromagnetic 243 | . . . . . . . . . . . . . . . . . 4 . . . . . . . . . . . . . . . 151 88 Robot Hit Streak 44 | 5 9 19 4 13 4 . . . . . 6 . . . . . 4 . . 9 . . . . . . . . . . . . 44 36 Robot Miss Streak 5 | 2 4 3 3 4 1 . . . . . . . . . . . 1 . . 2 . . . . . . . . . . . . 4 5 Penetration Max . | . . . . . . . . . . . . . . . . . . . . . . . . . . . . . . . . . . . Secondary Targets 2 | . 2 . . . . . . . . . . . . . . . . . . . . . . . . . . . . . . . . . Max Gunslinging Chain 1 | . 1 . . . . . . . . . . . . . . . . . . . . . . . . . . . . . . . . . Capacitor 614 | . . . . . . . . . . . . . . . . . . . . . . . . . . . . . . . . . 322 292 Shots Hit Robots 1249 | 17 71 70 15 141 20 3 3 . 7 32 46 . 18 10 9 1 11 5 3 17 . 25 3 . 3 . 15 5 4 12 3 13 352 315 Core Hits 707 | 8 30 24 4 73 41 1 1 . 6 17 8 . 7 4 1 . 3 . . 11 . 8 1 . 2 . 3 1 1 6 . 8 258 180 Critical Kills 8 | . . 2 . 3 . . . . . . . . . . 1 . . . . . . . . . . . . . . . . . 2 . Critical Parts Destroyed 12 | . 1 . . . . . . . . . 1 . . 2 3 . 1 . 1 1 . 2 . . . . . . . . . . . . Critical Strikes 66 | . 1 3 . 3 . 1 1 . 1 3 2 . 4 2 4 . 2 . 1 3 . 3 1 . 1 . 1 1 . . . 1 13 14 Burn 7 | . . . . . . . . . . . . . . . . . . . . . . . . . . . . . . . . . 7 . Meltdown 4 | . . . . 2 . . . . . . . . . . . . . . . . . . . . . . . . . . . . 2 . Destroy 5 | . 1 3 . 1 . . . . . . . . . . . . . . . . . . . . . . . . . . . . . . Blast 10 | . . . . . . . . . . . . . . . . . . . . . . . . . . . . . . . . . 1 9 Corrupt 5 | . . . . . . . . . . . . . . . . . . . . . . . . . . . . . . . . . . 5 Smash 13 | . . . . . . . . . . . 1 . . 2 4 . 2 . 1 1 . 2 . . . . . . . . . . . . Sever 7 | . . . . . . . . . . . . . . . . . . . . 2 . . . . . . . 1 . . . 1 3 . Impale 15 | . . . . . . 1 1 . 1 3 1 . 4 . . . . . . . . 1 1 . 1 . 1 . . . . . . . Melee Attacks 655 | . . 6 . . 37 25 8 2 23 81 56 1 20 22 40 3 12 5 5 32 . 64 6 . 3 1 23 16 21 19 17 36 71 . Impact 123 | . . . . . . . . . . . 5 1 1 22 36 2 12 . 5 1 . 38 . . . . . . . . . . . . Slashing 245 | . . 6 . . 19 . . . . . . . . . . . . . . 31 . 18 . . . . . 11 20 18 17 36 69 . Piercing 249 | . . . . . 17 25 8 2 23 80 28 . 17 . 1 1 . . . . . 7 6 . 3 1 23 3 1 1 . . 2 . Sneak Attacks 139 | . . 1 . . 8 3 2 . 1 11 27 . 12 4 7 . . 5 2 4 . 12 2 . . . 4 2 . 7 3 9 13 . Combat Hostiles 6 | . . . . . . . . . . . . . . 1 . . . . 1 . . 1 . . . . . . . . . 1 2 . Follow-up Attacks 2 | . . . . . . . . . . . 1 . . . . . . . . . . 1 . . . . . . . . . . . . Damage Inflicted 59052 | 221 907 1362 361 4355 1949 198 173 . 281 1589 988 . 1151 887 477 . 409 . 310 1137 . 1614 268 . 149 . 734 188 288 1437 554 2013 20377 14675 Guns 6144 | 221 906 1008 61 893 . . . . . . . . . . . . . . . . . . . . . . . . . . . . 3055 . Cannons 23187 | . . 266 298 2112 . . . . . . 65 . . . . . 164 . . 270 . . . . . . . . . . . . 6567 13445 Explosions 10024 | . . . . 1343 1115 . . . . . . . . 204 . . 172 . . 181 . . . . . . . . . . . . 5779 1230 Melee 19595 | . . 88 . . 834 198 173 . 281 1589 923 . 1151 683 477 . 73 . 310 686 . 1614 268 . 149 . 734 188 288 1437 554 2013 4884 . Ramming 102 | . 1 . 2 7 . . . . . . . . . . . . . . . . . . . . . . . . . . . . 92 . Kinetic 8751 | 221 906 517 61 963 . . . . . . . . . . . . . . . . . . . . . . . . . . . . 534 5549 Thermal 18591 | . . 757 298 2272 . . . . . . 65 . . . . . 164 . . 270 . . . . . . . . . . . . 7686 7079 Explosive 2409 | . . . . 1113 1115 . . . . . . . . . . . . . . 181 . . . . . . . . . . . . . . Electromagnetic 9604 | . . . . . . . . . . . . . . 204 . . 172 . . . . . . . . . . . . . . . 7181 2047 Impact 2556 | . . . . . . . . . . . 206 . 51 683 477 . 73 . 310 100 . 656 . . . . . . . . . . . . Slashing 10978 | . . 88 . . 226 . . . . . . . . . . . . . . 586 . 714 . . . . . 188 288 1437 554 2013 4884 . Piercing 6061 | . . . . . 608 198 173 . 281 1589 717 . 1100 . . . . . . . . 244 268 . 149 . 734 . . . . . . . Highest Corruption 17 | . . . . . . . . . . . . . . 4 4 1 1 1 4 1 9 17 . . . . . . . . . . 9 1 Average Corruption 2 | . . . . . . . . . . . . . . 1 1 1 1 1 2 1 9 9 . . . . . . . . . . 3 1 Corruption Purged 50 | . . . . . . . . . . . . . . . 5 . . . . 1 . 19 . . . . . . . . . . 25 . Corruption Blocked . | . . . . . . . . . . . . . . . . . . . . . . . . . . . . . . . . . . . Effects 146 | . . . . . . . . . . . . . . 8 4 . 6 . 2 3 1 21 . . . . . . . . . . 92 9 Message Errors 40 | . . . . . . . . . . . . . . 2 . . 3 . 2 . . 5 . . . . . . . . . . 26 2 Matter Fused 31 | . . . . . . . . . . . . . . 1 2 . 2 . . 1 1 3 . . . . . . . . . . 21 . Heat Flow Errors 21 | . . . . . . . . . . . . . . 1 2 . . . . . . 3 . . . . . . . . . . 14 1 Energy Discharges 23 | . . . . . . . . . . . . . . 1 . . 1 . . . . 5 . . . . . . . . . . 11 5 Parts Rejected 2 | . . . . . . . . . . . . . . 1 . . . . . . . . . . . . . . . . . . . 1 Parts Fused 3 | . . . . . . . . . . . . . . . . . . . . . . . . . . . . . . . . . 3 . Data Loss (minor) 15 | . . . . . . . . . . . . . . 2 . . . . . 1 . 4 . . . . . . . . . . 8 . Data Loss (major) 5 | . . . . . . . . . . . . . . . . . . . . 1 . 1 . . . . . . . . . . 3 . Misfires 4 | . . . . . . . . . . . . . . . . . . . . . . . . . . . . . . . . . 4 . Alerts 1 | . . . . . . . . . . . . . . . . . . . . . . . . . . . . . . . . . 1 . Weapon Failures 1 | . . . . . . . . . . . . . . . . . . . . . . . . . . . . . . . . . 1 . Overload Shots 10 | . . . . . . . . . . . . . . 1 2 . . 1 . 6 . . . . . . . . . . . . . . Effects 2 | . . . . . . . . . . . . . . . 1 . . . . 1 . . . . . . . . . . . . . . Energy Bleed 1 | . . . . . . . . . . . . . . . 1 . . . . . . . . . . . . . . . . . . . Heat Surge 1 | . . . . . . . . . . . . . . . . . . . . 1 . . . . . . . . . . . . . . Overflow Damage 5291 | . . . . 144 127 148 110 . . 195 274 . 394 267 339 . 57 . 170 218 . 495 249 . . . 54 . 62 169 341 478 987 13 Projectiles 325 | . . . . 96 . . . . . . . . . . . . 37 . . 31 . . . . . . . . . . . . 148 13 Explosions 164 | . . . . 48 12 . . . . . . . . 36 . . . . . . . . . . . . . . . . . . 68 . Melee 4802 | . . . . . 115 148 110 . . 195 274 . 394 231 339 . 20 . 170 187 . 495 249 . . . 54 . 62 169 341 478 771 . Knockbacks 37 | . . 4 . . . . . . . . 1 . . 1 1 . . . 1 1 . 3 . . . . . . . . . . 5 20 Impact 8 | . . . . . . . . . . . 1 . . 1 1 . . . 1 1 . 3 . . . . . . . . . . . . Kinetic 29 | . . 4 . . . . . . . . . . . . . . . . . . . . . . . . . . . . . . 5 20 Secondary . | . . . . . . . . . . . . . . . . . . . . . . . . . . . . . . . . . . . Self-Inflicted Damage 878 | . . . . 194 41 . . . . . . . . 101 . . . . . . . . . . . . . . . . . . 452 90 Shots 60 | . . . . 6 2 . . . . . . . . 1 . . . . . . . . . . . . . . . . . . 45 6 Rammed 5 | . . . 1 1 . . . . . . . . . . . . . . . . . . . . . . . . . . . . 3 . Targets Rammed 7 | . 1 . 1 1 . . . . . . . . . . . . . . . . . . . . . . . . . . . . 4 . Kicked . | . . . . . . . . . . . . . . . . . . . . . . . . . . . . . . . . . . . Crushed 2 | . 1 . . . . . . . . . . . . . . . . . . . . . . . . . . . . . . . 1 . Highest Temperature 348 | . 2 36 348 338 . . 12 . 78 230 3 . . 78 266 . 4 38 3 212 . 253 33 . . . 192 . 336 . . 2 273 282 Average Temperature 53 | . 2 14 102 64 . . 12 . 29 77 2 . . 31 81 . 4 23 2 83 . 85 21 . . . 78 . 120 . . 1 31 70 Received Heat Transfer 2601 | . 138 318 . 828 24 24 36 . 48 42 58 . . 39 156 . 45 . 18 30 12 216 199 12 . . . 9 54 . 45 54 127 69 Effects 1 | . . . . . . . . . . . . . . . 1 . . . . . . . . . . . . . . . . . . . Energy Bleed 1 | . . . . . . . . . . . . . . . 1 . . . . . . . . . . . . . . . . . . . Siege Activations 40 | . . . . . . . . . . . . . . . . . . . . . . . . . . . . . . . . . 19 21 Total Turns 792 | . . . . . . . . . . . . . . . . . . . . . . . . . . . . . . . . . 494 298 Longest Duration 205 | . . . . . . . . . . . . . . . . . . . . . . . . . . . . . . . . . 205 41 Robots Corrupted 70 | . . . . . . . . . . . 1 . . 3 3 . 1 . 1 1 . 3 . . . . . . . . . . 38 19 Combat Hostiles 58 | . . . . . . . . . . . . . . . . . 1 . . . . 1 . . . . . . . . . . 37 19 Parts Fried 118 | . . . . . . . . . . . 4 . . 6 1 . . . 1 1 . 4 . . . . . . . . . . 67 34 Impact Corruptions 41 | . . . . . . . . . . . 3 . . 10 7 . 1 . 7 3 . 9 . . . . . . . . . . 1 . Robots Melted 4 | . . . . 2 . . . . . . . . . . . . . . . . . . . . . . . . . . . . 2 . Combat Hostiles 2 | . . . . . . . . . . . . . . . . . . . . . . . . . . . . . . . . . 2 . Parts Melted 11 | . . . . 6 . . . . . . . . . . . . . . . . . . . . . . . . . . . . 5 . Heat Transferred 11086 | . . 925 407 3404 . . . . . . 100 . . . . . 222 . . 224 . . . . . . . . . . . . 3900 1904 Parts Sabotaged . | . . . . . . . . . . . . . . . . . . . . . . . . . . . . . . . . . . . Parts Stolen . | . . . . . . . . . . . . . . . . . . . . . . . . . . . . . . . . . . . Parts Stripped . | . . . . . . . . . . . . . . . . . . . . . . . . . . . . . . . . . . . Power Chain Reactions 13 | . . . . . . . . . . . . . . . . . . . . . . . . . . . . . . . . . 13 . Alert | -11 -10 -10 -8 -8 -7 -7 -7 -7 -6 -6 -6 -6 -6 -6 -5 -5 -5 -5 -4 -4 -4 -4 -4 -4 -4 -3 -3 -3 -3 -2 -2 -1 -1 -1 ------- Run | Yrd Mat Sub Mat Sto Fac Low Low Zio Pro Fac Ext Cet Arc Hub Fac Upp Upp War Pro Fac Was Fac Upp Upp Zhi Pro Res Qua Sec Res Tes Acc Com Ac0 Peak Influence 2378 | 35 212 . 39 742 971 . . . . 161 376 298 419 993 748 . . . . 319 89 446 . . . . 429 340 466 235 115 613 2378 . Initial 392 | . 22 . . 16 337 . . . . . 16 90 119 . 380 . . . . 194 39 62 . . . . 40 193 121 146 22 74 392 . Average 371 | 18 93 . 24 433 640 . . . . 43 135 209 87 584 258 . . . . 188 65 202 . . . . 172 222 255 176 54 339 1406 . Maximum Alert Level 5 | . 1 . . 3 3 . . . . . 1 1 2 3 3 . . . . 1 . 2 . . . . 2 1 2 1 . 2 5 . Low Security (%) 38 | 100 92 . 100 29 . . . . . 100 82 57 75 16 61 . . . . 56 100 58 . . . . 72 30 30 62 100 29 . . Level 1 11 | . 7 . . 13 17 . . . . . 17 42 16 7 2 . . . . 43 . 33 . . . . 27 69 64 37 . 36 . . Level 2 9 | . . . . 41 39 . . . . . . . 8 22 35 . . . . . . 7 . . . . . . 4 . . 34 2 . Level 3 7 | . . . . 16 42 . . . . . . . . 53 1 . . . . . . . . . . . . . . . . . 8 . Level 4 . | . . . . . . . . . . . . . . . . . . . . . . . . . . . . . . . . . 2 . Level 5 33 | . . . . . . . . . . . . . . . . . . . . . . . . . . . . . . . . . 86 . High Security . | . . . . . . . . . . . . . . . . . . . . . . . . . . . . . . . . . . . Max Security . | . . . . . . . . . . . . . . . . . . . . . . . . . . . . . . . . . . . Squads Dispatched 105 | . 4 . . 5 6 . 1 . . 9 1 . . 9 10 . . . . 6 . 17 . 1 . . 4 1 6 1 2 3 19 . Investigation 28 | . 2 . . . 2 . . . . 6 1 . . 1 4 . . . . 4 . 4 . . . . 3 . . . . 1 . . Extermination 22 | . . . . . 2 . . . . 2 . . . 2 4 . . . . . . 4 . . . . . . . . . 1 7 . Reinforcement 35 | . 2 . . . 2 . . . . 1 . . . 6 1 . . . . 2 . 9 . . . . 1 1 6 1 2 1 . . Assault 17 | . . . . 2 . . 1 . . . . . . . 1 . . . . . . . . 1 . . . . . . . . 12 . Garrison 3 | . . . . 3 . . . . . . . . . . . . . . . . . . . . . . . . . . . . . . Intercept . | . . . . . . . . . . . . . . . . . . . . . . . . . . . . . . . . . . . Searches Triggered 2 | . . . . . . . . . . . . . . . . . . . . . . 1 . . . . . . 1 . . . . . Construction Impeded 3 | . . . . . 2 . . . . . . . . 1 . . . . . . . . . . . . . . . . . . . . Haulers Reinforced 5 | . . . . . . . . . . 1 . . . 1 . . . . . . . 1 . . . . 1 . . . 1 . . . Active Scanning Responses . | . . . . . . . . . . . . . . . . . . . . . . . . . . . . . . . . . . . Cargo Convoy Interrupts 1 | . . . . . . . . . . . . . . . . . . . . . . 1 . . . . . . . . . . . . Stealth | -11 -10 -10 -8 -8 -7 -7 -7 -7 -6 -6 -6 -6 -6 -6 -5 -5 -5 -5 -4 -4 -4 -4 -4 -4 -4 -3 -3 -3 -3 -2 -2 -1 -1 -1 --------- Run | Yrd Mat Sub Mat Sto Fac Low Low Zio Pro Fac Ext Cet Arc Hub Fac Upp Upp War Pro Fac Was Fac Upp Upp Zhi Pro Res Qua Sec Res Tes Acc Com Ac0 Distress Signals 51 | . . . 1 . 2 . . . . 1 3 2 . 2 1 . 1 . . 3 . 6 . . . . 6 . 2 2 1 2 16 . Communications Jammed 161 | . . . . . . . . . . . . . . . . . . . . . . . . . . . . . 99 . 12 18 32 . Distress Signals 119 | . . . . . . . . . . . . . . . . . . . . . . . . . . . . . 59 . 12 16 32 . Times Spotted 906 | . 24 14 4 45 33 11 10 . 10 43 28 7 7 40 74 1 3 . 12 44 5 139 17 8 . 4 10 19 65 5 17 48 114 45 Peak Tracking Total 15 | . 3 2 3 6 8 5 13 . 4 7 5 5 1 7 12 1 1 . 10 9 5 14 11 13 . 4 3 7 15 2 5 10 10 4 Tactical Retreats 162 | . 3 1 1 1 10 8 5 . 2 11 1 . . 4 18 . 1 . 3 6 . 40 6 1 . 2 2 4 12 1 3 10 6 . Traps | -11 -10 -10 -8 -8 -7 -7 -7 -7 -6 -6 -6 -6 -6 -6 -5 -5 -5 -5 -4 -4 -4 -4 -4 -4 -4 -3 -3 -3 -3 -2 -2 -1 -1 -1 ------- Run | Yrd Mat Sub Mat Sto Fac Low Low Zio Pro Fac Ext Cet Arc Hub Fac Upp Upp War Pro Fac Was Fac Upp Upp Zhi Pro Res Qua Sec Res Tes Acc Com Ac0 Traps Triggered 18 | . . 2 . 5 . . . . . 1 . . . . 2 . . . . 2 . . . . . . . . . . . . 6 . Indirectly 2 | . . . . . . . . . . . . . . . . . . . . . . . . . . . . . . . . . 2 . Trap Hack Attempts 39 | . . . . 39 . . . . . . . . . . . . . . . . . . . . . . . . . . . . . . Triggered . | . . . . . . . . . . . . . . . . . . . . . . . . . . . . . . . . . . . Disarmed 10 | . . . . . . . . . . . 10 . . . . . . . . . . . . . . . . . . . . . . . Reprogrammed 49 | . . . . 4 . . . . . 10 . . . . 5 . . . . . . . . . . . 8 14 . . . . 8 . Reused 10 | . . . . . . . . . . 3 . . . . 4 . . . . . . . . . . . 1 1 . . . . 1 . Traps Extracted 3 | . . . . . . . . . 1 1 . . . . . . 1 . . . . . . . . . . . . . . . . . Installed 2 | . . . . . . . . . 1 1 . . . . . . . . . . . . . . . . . . . . . . . . Triggered 17 | . . . . . . . . . 1 3 . . . . 4 . . 6 . . . . . . . . 1 1 . . . . 1 . Most Traps Carried 6 | . . 1 1 1 . . . . 4 4 . . . . . . 2 2 6 6 6 . 5 5 5 5 5 5 . . . . . . Machines | -11 -10 -10 -8 -8 -7 -7 -7 -7 -6 -6 -6 -6 -6 -6 -5 -5 -5 -5 -4 -4 -4 -4 -4 -4 -4 -3 -3 -3 -3 -2 -2 -1 -1 -1 ---------- Run | Yrd Mat Sub Mat Sto Fac Low Low Zio Pro Fac Ext Cet Arc Hub Fac Upp Upp War Pro Fac Was Fac Upp Upp Zhi Pro Res Qua Sec Res Tes Acc Com Ac0 Machines Disabled 45 | . . 1 . 7 1 . 1 . . 1 . . 1 7 . 1 . 1 . . . . . . . . 1 3 6 . 5 . 7 2 Max in Single Turn 3 | . . 1 . 2 1 . 1 . . 1 . . . 3 . 1 . 1 . . . . . . . . 1 1 1 . 1 . 1 1 Garrison Access 15 | . . . . 1 1 . . . . 2 . . . 1 3 . . . . . . 3 . . . . . 1 1 1 1 . . . Network Hub 4 | . . . . . . . . . . . . . . 4 . . . . . . . . . . . . . . . . . . . . Machines Repaired . | . . . . . . . . . . . . . . . . . . . . . . . . . . . . . . . . . . . Machines Dismantled . | . . . . . . . . . . . . . . . . . . . . . . . . . . . . . . . . . . . Machines Sabotaged . | . . . . . . . . . . . . . . . . . . . . . . . . . . . . . . . . . . . Overloaded Fab Kills . | . . . . . . . . . . . . . . . . . . . . . . . . . . . . . . . . . . . Hacking | -11 -10 -10 -8 -8 -7 -7 -7 -7 -6 -6 -6 -6 -6 -6 -5 -5 -5 -5 -4 -4 -4 -4 -4 -4 -4 -3 -3 -3 -3 -2 -2 -1 -1 -1 --------- Run | Yrd Mat Sub Mat Sto Fac Low Low Zio Pro Fac Ext Cet Arc Hub Fac Upp Upp War Pro Fac Was Fac Upp Upp Zhi Pro Res Qua Sec Res Tes Acc Com Ac0 Machines Accessed 222 | . 9 2 1 11 15 . 1 1 . 27 12 1 . 12 28 2 . 2 . 12 . 27 1 . 4 . 6 13 8 3 7 5 12 . Terminals 141 | . 6 . 1 9 9 . . . . 13 12 1 . 11 13 . . . . 7 . 15 1 . . . 4 9 6 2 6 5 11 . Fabricators 23 | . . . . . 2 . . . . 6 . . . . 5 . . . . 4 . 5 . . . . 1 . . . . . . . Repair Stations 12 | . 1 . . 1 . . . . . 1 . . . . 4 . . . . . . 2 . . . . . 2 1 . . . . . Recycling Units 16 | . 2 . . . 2 . . . . 4 . . . . 3 . . . . 1 . 2 . . . . 1 . . . . . 1 . Scanalyzers 2 | . . . . . 1 . . . . . . . . . . . . . . . . . . . . . . 1 . . . . . . Garrison Access 16 | . . . . 1 1 . . . . 3 . . . 1 3 . . . . . . 3 . . . . . 1 1 1 1 . . . Total Hacks 919 | . 25 6 5 27 56 . 7 7 . 88 44 2 . 37 136 2 . 2 . 80 . 116 7 . 17 . 53 56 27 8 33 17 61 . Successful 694 | . 15 6 3 15 23 . 7 7 . 66 32 1 . 21 114 2 . 2 . 73 . 104 7 . 17 . 46 51 20 4 27 4 27 . Failed 223 | . 10 . 2 12 33 . . . . 21 12 1 . 16 22 . . . . 6 . 12 . . . . 7 5 7 4 6 13 34 . Catastrophic 21 | . 1 . . 1 5 . . . . 1 . . . 1 2 . . . . . . . . . . . 1 . 1 . . 2 6 . Database Lockouts 2 | . . . . . . . . . . 1 . . . . . . . . . 1 . . . . . . . . . . . . . . Manual 442 | . 16 . 5 12 36 . . . . 37 24 1 . 24 74 . . . . 47 . 59 . . . . 29 16 13 1 24 5 19 . Terminals 654 | . 19 . 5 24 33 . . . . 48 44 2 . 36 85 . . . . 58 . 84 7 . . . 39 45 18 7 32 17 51 . Fabricators 96 | . . . . . 9 . . . . 21 . . . . 21 . . . . 17 . 18 . . . . 10 . . . . . . . Repair Stations 39 | . 2 . . 1 . . . . . 3 . . . . 14 . . . . . . 5 . . . . . 7 7 . . . . . Recycling Units 60 | . 4 . . . 8 . . . . 10 . . . . 13 . . . . 5 . 6 . . . . 4 . . . . . 10 . Scanalyzers 6 | . . . . . 3 . . . . . . . . . . . . . . . . . . . . . . 3 . . . . . . Garrison Access 23 | . . . . 2 3 . . . . 6 . . . 1 3 . . . . . . 3 . . . . . 1 2 1 1 . . . Terminal Hacks 380 | . 3 6 . 6 5 . 7 7 . 29 22 1 . 13 50 2 . 2 . 38 . 58 7 . 17 . 31 34 8 3 12 3 16 . Record 28 | . . 5 . . . . 7 . . . . . . . . . . . . . . . 7 . 5 . 1 3 . . . . . . Part Schematic 56 | . . . . . 2 . . 7 . 4 1 . . . 7 . . . . 6 . 13 . . 4 . 4 6 . . 1 1 . . Robot Schematic 3 | . . . . . . . . . . . . . . . . . . . . 2 . . . . . . . 1 . . . . . . Robot Analysis 17 | . . . . . . . . . . . . . . 1 . . . . . . . 1 . . 4 . 8 2 . . . . 1 . Prototype ID Bank 34 | . . . . 1 1 . . . . 3 1 . . 1 3 . . . . 5 . 6 . . 4 . . 4 . . 3 . 2 . Open Door 19 | . . . . 2 . . . . . 2 4 1 . . . 2 . 2 . . . . . . . . . 2 2 . . 1 1 . Level Access Points 5 | . . . . . . . . . . . . . . . 1 . . . . 2 . 1 . . . . . 1 . . . . . . Branch Access Points 6 | . . . . . . . . . . . . . . . 1 . . . . 1 . 1 . . . . 1 . . 1 . 1 . . Emergency Access Points 18 | . 1 . . . . . . . . 3 . . . 2 3 . . . . 1 . 1 . . . . 2 1 1 . 1 . 2 . Machine Index 5 | . . . . . . . . . . . . . . . 1 . . . . 1 . 1 . . . . 1 1 . . . . . . Terminal Index 7 | . . . . 1 1 . . . . . 1 . . . . . . . . . . . . . . . 1 1 . . 1 . 1 . Fabricator Index 1 | . . . . . . . . . . . . . . . 1 . . . . . . . . . . . . . . . . . . . Repair Station Index 3 | . . . . . . . . . . . 1 . . . . . . . . . . . . . . . 1 . . . . . 1 . Recycling Unit Index 2 | . . . . . . . . . . . 1 . . . . . . . . . . . . . . . . . . . . . 1 . Garrison Index 2 | . . . . . . . . . . 1 . . . . . . . . . . . . . . . . 1 . . . . . . . Alert Level 13 | . . . . 1 . . . . . 2 1 . . 2 4 . . . . . . 1 . . . . . . . 1 . . 1 . Unreport Threat 25 | . . . . . . . . . . 3 2 . . 5 5 . . . . 2 . 4 . . . . 1 1 1 . 1 . . . Locate Traps 29 | . 1 . . 1 . . . . . 2 2 . . 1 4 . . . . 6 . 4 . . . . 2 2 1 . 1 . 2 . Disarm Traps 2 | . . . . . . . . . . . 2 . . . . . . . . . . . . . . . . . . . . . . . Reprogram Traps 14 | . . . . . . . . . . 4 . . . . 2 . . . . . . 1 . . . . 2 3 . . . . 2 . Dispatch Records 4 | . . . . . . . . . . . . . . . . . . . . . . 2 . . . . . 1 1 . . . . . Security Status 1 | . . . . . . . . . . . . . . . . . . . . . . . . . . . . 1 . . . . . . Patrol Status 3 | . . . . . . . . . . 1 . . . . 1 . . . . 1 . . . . . . . . . . . . . . Recall Investigation 10 | . . . . . . . . . . . 1 . . . 3 . . . . 2 . 4 . . . . . . . . . . . . Recall Extermination 9 | . . . . . . . . . . 1 . . . . 4 . . . . . . 4 . . . . . . . . . . . . Recall Reinforcements 11 | . 1 . . . . . . . . . . . . 1 1 . . . . 1 . 5 . . . . . . 1 . 1 . . . Recall Assault 2 | . . . . . . . . . . . . . . . 1 . . . . . . 1 . . . . . . . . . . . . Hauler Manifests 6 | . . . . . . . . . . 2 . . . . . . . . . 1 . 1 . . . . 2 . . . . . . . Registered Components 9 | . . . . . . . . . . . 1 . . . 1 . . . . 1 . 1 . . . . 2 1 . . 1 . 1 . Registered Prototypes 5 | . . . . . . . . . . . 1 . . . 1 . . . . . . 1 . . . . 1 . 1 . . . . . Zone Layout 29 | . . . . . 1 . . . . 1 3 . . . 6 . . . . 6 . 5 . . . . 1 3 . 1 2 . . . Derelict Proto ID Bank 1 | . . 1 . . . . . . . . . . . . . . . . . . . . . . . . . . . . . . . . Disengage Seal 1 | . . . . . . . . . . . . . . . . . . . . . . . . . . . . . . . . . 1 . Fabricator Hacks 49 | . . . . . 2 . . . . 11 . . . . 12 . . . . 6 . 10 . . . . 8 . . . . . . . Network Status 2 | . . . . . . . . . . . . . . . . . . . . 1 . 1 . . . . . . . . . . . . Load Schematic 33 | . . . . . 1 . . . . 7 . . . . 8 . . . . 4 . 7 . . . . 6 . . . . . . . Build 14 | . . . . . 1 . . . . 4 . . . . 4 . . . . 1 . 2 . . . . 2 . . . . . . . Repair Station Hacks 35 | . 2 . . . . . . . . 2 . . . . 14 . . . . . . 5 . . . . . 6 6 . . . . . Scan Component 18 | . 1 . . . . . . . . 1 . . . . 7 . . . . . . 3 . . . . . 3 3 . . . . . Repair 17 | . 1 . . . . . . . . 1 . . . . 7 . . . . . . 2 . . . . . 3 3 . . . . . Recycling Unit Hacks 18 | . 2 . . . 1 . . . . 4 . . . . 4 . . . . 2 . 3 . . . . 1 . . . . . 1 . Retrieve Matter 2 | . . . . . . . . . . . . . . . 1 . . . . 1 . . . . . . . . . . . . . . Retrieve Components 16 | . 2 . . . 1 . . . . 4 . . . . 3 . . . . 1 . 3 . . . . 1 . . . . . 1 . Scanalyzer 4 | . . . . . 2 . . . . . . . . . . . . . . . . . . . . . . 2 . . . . . . Insert Component 3 | . . . . . 1 . . . . . . . . . . . . . . . . . . . . . . 2 . . . . . . Analyze 1 | . . . . . 1 . . . . . . . . . . . . . . . . . . . . . . . . . . . . . Garrison Access Hacks 15 | . . . . 1 1 . . . . 2 . . . 1 3 . . . . . . 3 . . . . . 1 1 1 1 . . . Seal Access 15 | . . . . 1 1 . . . . 2 . . . 1 3 . . . . . . 3 . . . . . 1 1 1 1 . . . Unauthorized Hacks 193 | . 8 . 3 8 12 . . . . 18 10 . . 7 31 . . . . 27 . 25 . . . . 6 8 5 . 14 1 10 . Terminals 128 | . 6 . 3 8 8 . . . . 9 10 . . 7 15 . . . . 13 . 15 . . . . 1 7 5 . 14 1 6 . Track 7 | . . . . . . . . . . . . . . . 2 . . . . 2 . . . . . . . . . . 2 . 1 . Assimilate 17 | . . . . . 1 . . . . . 1 . . . 3 . . . . 1 . 4 . . . . 1 . . . 3 . 3 . Botnet 23 | . . . 1 1 1 . . . . 2 2 . . . 3 . . . . 3 . 2 . . . . . 2 2 . 2 1 1 . Disrupt 5 | . . . . . . . . . . . 1 . . 1 . . . . . 1 . 1 . . . . . . . . 1 . . . Operators 12 | . . . 1 1 1 . . . . 1 1 . . . 1 . . . . 1 . 2 . . . . . 1 . . 1 . 1 . Skim 64 | . 6 . 1 6 5 . . . . 6 5 . . 6 6 . . . . 5 . 6 . . . . . 4 3 . 5 . . . Fabricators 35 | . . . . . 1 . . . . 6 . . . . 8 . . . . 11 . 7 . . . . 2 . . . . . . . Report 1 | . . . . . . . . . . . . . . . . . . . . 1 . . . . . . . . . . . . . . Prioritize 11 | . . . . . 1 . . . . 2 . . . . 2 . . . . 3 . 2 . . . . 1 . . . . . . . Liberate 7 | . . . . . . . . . . 1 . . . . 2 . . . . 3 . 1 . . . . . . . . . . . . Haulers 1 | . . . . . . . . . . . . . . . . . . . . 1 . . . . . . . . . . . . . . Recompile 15 | . . . . . . . . . . 3 . . . . 4 . . . . 3 . 4 . . . . 1 . . . . . . . Repair Stations . | . . . . . . . . . . . . . . . . . . . . . . . . . . . . . . . . . . . Recycling Units 29 | . 2 . . . 3 . . . . 3 . . . . 8 . . . . 3 . 3 . . . . 3 . . . . . 4 . Monitor 1 | . . . . . . . . . . . . . . . . . . . . . . . . . . . . . . . . . 1 . Reject 9 | . . . . . 1 . . . . 1 . . . . 3 . . . . 1 . 1 . . . . 1 . . . . . 1 . Recyclers 8 | . . . . . 1 . . . . 1 . . . . 2 . . . . 1 . 1 . . . . 1 . . . . . 1 . Mask 9 | . . . . . 1 . . . . 1 . . . . 3 . . . . 1 . 1 . . . . 1 . . . . . 1 . Tunnel 2 | . 2 . . . . . . . . . . . . . . . . . . . . . . . . . . . . . . . . . Scanalyzers 1 | . . . . . . . . . . . . . . . . . . . . . . . . . . . . 1 . . . . . . Researchers 1 | . . . . . . . . . . . . . . . . . . . . . . . . . . . . 1 . . . . . . Garrison Access . | . . . . . . . . . . . . . . . . . . . . . . . . . . . . . . . . . . . Data Cores Recovered 3 | . 1 . . 1 . . . . . . . . . 1 . . . . . . . . . . . . . . . . . . . . Used 1 | . . . . . . . . . . . . . . 1 . . . . . . . . . . . . . . . . . . . . Hacking Detections 122 | . 7 . 1 8 14 . . . . 18 7 2 . 9 11 . . . . 4 . 7 . . . . 4 8 5 1 3 4 9 . Full Trace Events 8 | . . . . . 2 . . . . 3 1 . . 1 . . . . . 1 . . . . . . . . . . . . . . Feedback Events 1 | . . . . . . . . . . . . . . 1 . . . . . . . . . . . . . . . . . . . . Corruption 1 | . . . . . . . . . . . . . . 1 . . . . . . . . . . . . . . . . . . . . Feedback Blocked . | . . . . . . . . . . . . . . . . . . . . . . . . . . . . . . . . . . . Robot Schematics Acquired 7 | . . . . . . . . 4 . . . . . . . . . . . 2 . . . . . . . 1 . . . . . . Robots Built . | . . . . . . . . . . . . . . . . . . . . . . . . . . . . . . . . . . . Authchips . | . . . . . . . . . . . . . . . . . . . . . . . . . . . . . . . . . . . Time . | . . . . . . . . . . . . . . . . . . . . . . . . . . . . . . . . . . . Total Robot Build Rating . | . . . . . . . . . . . . . . . . . . . . . . . . . . . . . . . . . . . Part Schematics Acquired 71 | . . . . . 3 . . 21 . 4 1 . . . 7 . . . . 6 . 13 . . 4 . 4 6 . . 1 1 . . Parts Built 17 | . . . . . 2 . . . . 6 . . . . 4 . . . . 1 . 2 . . . . 2 . . . . . . . Authchips 12 | . . . . . . . . . . 4 . . . . 4 . . . . . . 2 . . . . 2 . . . . . . . Time 579 | . . . . . 18 . . . . 117 . . . . 176 . . . . 38 . 35 . . . . 195 . . . . . . . Total Part Build Rating 77 | . . . . . 6 . . . . 18 . . . . 26 . . . . 5 . 7 . . . . 15 . . . . . . . Parts Repaired 17 | . 1 . . . . . . . . 1 . . . . 7 . . . . . . 2 . . . . . 3 3 . . . . . Time 688 | . 26 . . . . . . . . 19 . . . . 403 . . . . . . 62 . . . . . 102 76 . . . . . Parts Recycled . | . . . . . . . . . . . . . . . . . . . . . . . . . . . . . . . . . . . Recycled Matter . | . . . . . . . . . . . . . . . . . . . . . . . . . . . . . . . . . . . Retrieved Matter . | . . . . . . . . . . . . . . . . . . . . . . . . . . . . . . . . . . . Retrieved Components 26 | . 5 . . . 3 . . . . 12 . . . . 1 . . . . 1 . 4 . . . . . . . . . . . . Parts Scanalyzed 1 | . . . . . 1 . . . . . . . . . . . . . . . . . . . . . . . . . . . . . Part Schematics Acquired 1 | . . . . . 1 . . . . . . . . . . . . . . . . . . . . . . . . . . . . . Parts Damaged . | . . . . . . . . . . . . . . . . . . . . . . . . . . . . . . . . . . . Bothacking | -11 -10 -10 -8 -8 -7 -7 -7 -7 -6 -6 -6 -6 -6 -6 -5 -5 -5 -5 -4 -4 -4 -4 -4 -4 -4 -3 -3 -3 -3 -2 -2 -1 -1 -1 ------------ Run | Yrd Mat Sub Mat Sto Fac Low Low Zio Pro Fac Ext Cet Arc Hub Fac Upp Upp War Pro Fac Was Fac Upp Upp Zhi Pro Res Qua Sec Res Tes Acc Com Ac0 Used RIF Installer . | . . . . . . . . . . . . . . . . . . . . . . . . . . . . . . . . . . . Robots Hacked 7 | . . . . . . . . . . 1 1 . 1 . 2 . . . . . . . . . . . . 2 . . . . . . Non-combat 4 | . . . . . . . . . . 1 . . 1 . 2 . . . . . . . . . . . . . . . . . . . Combat 3 | . . . . . . . . . . . 1 . . . . . . . . . . . . . . . . 2 . . . . . . Robot Hacks Applied 9 | . . . . . . . . . . 1 1 . 2 . 3 . . . . . . . . . . . . 2 . . . . . . parse_system 3 | . . . . . . . . . . . 1 . . . . . . . . . . . . . . . . 2 . . . . . . no_distress 1 | . . . . . . . . . . . . . 1 . . . . . . . . . . . . . . . . . . . . . find_chute 1 | . . . . . . . . . . 1 . . . . . . . . . . . . . . . . . . . . . . . . find_fabricator 1 | . . . . . . . . . . . . . . . 1 . . . . . . . . . . . . . . . . . . . find_dsf 1 | . . . . . . . . . . . . . . . 1 . . . . . . . . . . . . . . . . . . . find_station 1 | . . . . . . . . . . . . . . . 1 . . . . . . . . . . . . . . . . . . . check_alert 1 | . . . . . . . . . . . . . 1 . . . . . . . . . . . . . . . . . . . . . Relay Couplers Released . | . . . . . . . . . . . . . . . . . . . . . . . . . . . . . . . . . . . Fabnet Peak Effective % . | . . . . . . . . . . . . . . . . . . . . . . . . . . . . . . . . . . . Robots Rewired 18 | . . . . . . . . . . . 13 . . . . . . 5 . . . . . . . . . . . . . . . . Allies Hacked 3 | . . . . . . . . . . . . . . . 1 . . . . . . . . . . . 1 . . . . . 1 . Hacks Repelled . | . . . . . . . . . . . . . . . . . . . . . . . . . . . . . . . . . . . Allies | -11 -10 -10 -8 -8 -7 -7 -7 -7 -6 -6 -6 -6 -6 -6 -5 -5 -5 -5 -4 -4 -4 -4 -4 -4 -4 -3 -3 -3 -3 -2 -2 -1 -1 -1 -------- Run | Yrd Mat Sub Mat Sto Fac Low Low Zio Pro Fac Ext Cet Arc Hub Fac Upp Upp War Pro Fac Was Fac Upp Upp Zhi Pro Res Qua Sec Res Tes Acc Com Ac0 Total Allies 49 | . . . . . 1 . . . . . 19 5 . . 6 . . 5 . 1 . 6 . . . . 1 . . . 2 . 3 . Largest Group 14 | . . . . . 1 . . . . . 14 14 11 10 3 . . 5 . 1 . 3 . . . . 1 . . . 2 . 1 . Highest-Rated Group 797 | . . . . . 10 . . . . . 536 797 776 618 120 . . 250 . 26 . 141 . . . . 45 . . . 36 . 45 . Highest-Rated Ally 159 | . . . . . 10 . . . . . 159 159 153 96 54 . . 65 . 26 . 47 . . . . 45 . . . 26 . 45 . Total Orders 29 | . . . . . 2 . . . . . . 4 3 4 . . . . . . . . . . . . . 9 7 . . . . . STAY 5 | . . . . . . . . . . . . 1 . 4 . . . . . . . . . . . . . . . . . . . . ROAM 2 | . . . . . . . . . . . . 1 1 . . . . . . . . . . . . . . . . . . . . . FOLLOW 4 | . . . . . . . . . . . . 2 2 . . . . . . . . . . . . . . . . . . . . . EXPLORE 1 | . . . . . 1 . . . . . . . . . . . . . . . . . . . . . . . . . . . . . RETURN 17 | . . . . . 1 . . . . . . . . . . . . . . . . . . . . . . 9 7 . . . . . Ally Attacks 401 | . . . . . . . . . . . 92 50 21 126 3 . . . . . . 10 . . . . . 57 42 . . . . . Total Damage 10239 | . . . . . . . . . . . 1777 1562 673 4655 20 . . . . . . 154 . . . . . 747 651 . . . . . Kills 74 | . . . . . . . . . . . 18 10 4 30 . . . . . . . 2 . . . . . 4 6 . . . . . Allies Corrupted 5 | . . . . . . . . . . . . . . 2 . . . . . . . 3 . . . . . . . . . . . . Allies Melted . | . . . . . . . . . . . . . . . . . . . . . . . . . . . . . . . . . . . Intel | -11 -10 -10 -8 -8 -7 -7 -7 -7 -6 -6 -6 -6 -6 -6 -5 -5 -5 -5 -4 -4 -4 -4 -4 -4 -4 -3 -3 -3 -3 -2 -2 -1 -1 -1 ------- Run | Yrd Mat Sub Mat Sto Fac Low Low Zio Pro Fac Ext Cet Arc Hub Fac Upp Upp War Pro Fac Was Fac Upp Upp Zhi Pro Res Qua Sec Res Tes Acc Com Ac0 Robot Analysis Total 17 | . . . . . . . . . . . . . . 1 . . . . . . . 1 . . 4 . 8 2 . . . . 1 . Derelict Logs Recovered 14 | . . 1 . . . 2 2 2 1 . . . . . . 2 1 . . . . . 3 . . . . . . . . . . . Drone Launches 21 | . . . . . 2 . . . . . . . . . . . . . . . . . . . . . . 10 9 . . . . . Drone Recoveries 20 | . . . . . 1 . . . . . . . . . . . . . . . . . . . . . . 10 9 . . . . . Exploration | -11 -10 -10 -8 -8 -7 -7 -7 -7 -6 -6 -6 -6 -6 -6 -5 -5 -5 -5 -4 -4 -4 -4 -4 -4 -4 -3 -3 -3 -3 -2 -2 -1 -1 -1 ------------- Run | Yrd Mat Sub Mat Sto Fac Low Low Zio Pro Fac Ext Cet Arc Hub Fac Upp Upp War Pro Fac Was Fac Upp Upp Zhi Pro Res Qua Sec Res Tes Acc Com Ac0 Turns Passed 41109 | 204 2283 6101 536 2251 696 352 268 356 436 1250 884 255 3085 1054 1533 214 580 378 131 578 31 1710 252 86 84 55 525 579 534 428 315 391 11790 904 Spaces Moved 40377 | 100 583 1915 320 727 1399 797 670 880 757 2336 1452 238 701 1640 2993 535 1238 935 365 1360 65 3314 619 253 160 154 1009 843 936 793 693 1287 8104 206 Core 468 | 17 . . . . . . . . . . . . 442 . . . . . . . 1 . . . . . 8 . . . . . . . Treads 9135 | 83 583 1630 . 670 . . . . . . . . . . . . . . . . . . . . . . . . . 1 . . 5962 206 Legs . | . . . . . . . . . . . . . . . . . . . . . . . . . . . . . . . . . . . Wheels 662 | . . 285 320 57 . . . . . . . . . . . . . . . . . . . . . . . . . . . . . . Hover . | . . . . . . . . . . . . . . . . . . . . . . . . . . . . . . . . . . . Flight 30103 | . . . . . 1399 797 670 880 757 2336 1452 238 259 1640 2993 535 1238 935 365 1360 64 3314 619 253 160 154 1001 843 936 792 687 1284 2142 . Fastest Speed 15 | 50 160 150 130 130 34 34 34 34 34 32 32 32 30 30 30 37 37 30 30 26 34 31 34 34 34 34 31 34 34 18 15 15 15 160 Average Speed 78 | 141 243 302 144 231 34 34 34 34 34 32 32 32 414 30 37 37 37 33 30 28 37 35 34 34 36 34 35 34 36 26 16 15 122 160 Slowest Speed 700 | 160 320 340 160 320 34 34 34 34 34 88 32 32 700 30 97 37 97 37 30 34 150 120 34 34 104 34 200 114 119 180 82 85 250 160 Overloaded Moves . | . . . . . . . . . . . . . . . . . . . . . . . . . . . . . . . . . . . Propulsion Burnouts . | . . . . . . . . . . . . . . . . . . . . . . . . . . . . . . . . . . . Robots Hopped 102 | . . . . . 6 . 2 . 2 12 3 . . 3 15 . . . 4 5 . 20 1 . . . 7 3 2 1 3 5 8 . Cave-ins Triggered . | . . . . . . . . . . . . . . . . . . . . . . . . . . . . . . . . . . . Teleports 1 | . . . . . . . . . . . . . . . . . . . . . . . . . . . . . . . . . 1 . Spacefolds 3 | . . . . . . . . . . . . . . . . . . . . . . . . . . . . . . . 2 1 . . Exploration Rate (%) 63 | 5 88 92 24 94 46 70 70 84 82 50 85 66 98 86 69 66 98 96 67 37 68 73 67 53 60 44 26 85 64 23 66 31 86 19 Regions Visited 34 Branch Regions 23 Pre-discovered Areas 19 | . 2 1 . 1 . 1 . 2 . 3 1 . . 1 1 1 . . . . . . 2 . 3 . . . . . . . . . Known Exits Taken 16 | . 1 1 1 1 1 . . . 1 1 . . . . 1 1 . . 1 . . 1 . . . 1 1 . 1 1 . 1 . . Unknown Exits Taken 16 | 1 . . . . . 1 1 1 . . 1 1 1 1 . . 1 1 . . . . 1 1 1 . . 1 . . 1 . 1 . Scrap Searched 32 | . . 12 . . . . 4 3 4 . . . . . . 2 4 . 1 . . . 1 1 . . . . . . . . . . Spaces Dug 379 | . . . 1 16 17 9 4 1 13 45 6 . . 11 29 1 8 . 2 17 . 40 1 . . 1 14 12 8 5 14 21 76 7 Terrain Destroyed 949 | . . . 6 125 58 9 4 1 13 46 6 . . 185 29 1 9 . 2 30 . 40 1 . . 1 16 12 11 5 15 21 175 128 Melee 257 | . . . . . 17 9 4 1 11 37 2 . . 10 27 1 8 . 2 14 . 35 1 . . 1 6 6 7 5 11 20 22 . Projectile 268 | . . . 6 29 . . . . 2 9 4 . . 1 2 . 1 . . 3 . 5 . . . . 10 6 4 . 4 1 53 128 AOE 424 | . . . . 96 41 . . . . . . . . 174 . . . . . 13 . . . . . . . . . . . . 100 . Terrain Rammed . | . . . . . . . . . . . . . . . . . . . . . . . . . . . . . . . . . . . Walls Destroyed . | . . . . . . . . . . . . . . . . . . . . . . . . . . . . . . . . . . . Machines Disabled . | . . . . . . . . . . . . . . . . . . . . . . . . . . . . . . . . . . . Actions | -11 -10 -10 -8 -8 -7 -7 -7 -7 -6 -6 -6 -6 -6 -6 -5 -5 -5 -5 -4 -4 -4 -4 -4 -4 -4 -3 -3 -3 -3 -2 -2 -1 -1 -1 --------- Run | Yrd Mat Sub Mat Sto Fac Low Low Zio Pro Fac Ext Cet Arc Hub Fac Upp Upp War Pro Fac Was Fac Upp Upp Zhi Pro Res Qua Sec Res Tes Acc Com Ac0 Total 47899 | 135 1315 2121 366 1080 1558 848 694 932 895 2682 1804 413 847 2153 3310 543 1320 1000 372 1483 71 3709 646 252 179 154 1116 1092 1073 976 853 1404 9755 748 Wait 3623 | . 639 77 4 50 35 34 8 37 77 165 281 162 105 464 174 . 47 35 4 23 5 183 12 . . . 35 173 31 4 51 30 569 109 Move 40148 | 99 582 1914 319 726 1386 796 665 879 753 2314 1445 237 700 1633 2962 534 1237 934 357 1351 64 3276 616 252 159 153 995 837 931 790 683 1274 8089 206 Hop 88 | . . . . . 6 . 2 . 1 9 3 . . 3 15 . . . 3 4 . 17 1 . . . 6 2 2 1 2 5 6 . Pick Up 436 | 14 17 28 11 18 13 . 2 4 6 17 . . 4 2 27 . 3 . . 9 1 40 2 . 3 . 6 9 9 19 12 2 152 6 Fast Attach 344 | . 1 1 . 26 8 . 3 . 3 8 1 6 1 7 18 2 . 12 . 10 . 23 . . 4 . 9 9 26 55 30 26 53 2 Attach 194 | 7 . 11 5 2 8 . 1 . 5 15 . . . 2 6 . . . 1 7 1 18 1 . . . 6 6 11 13 4 1 40 23 Detach 100 | . . . . 1 3 . . . 6 8 . . . 1 4 . . . . 5 . 6 . . 1 . 1 6 6 4 5 1 23 19 Swap 386 | . 7 12 6 38 22 1 1 6 6 30 11 1 11 6 26 3 6 2 2 9 . 35 6 . 3 . 5 11 4 2 . . 91 23 Drop 673 | 1 4 18 6 52 30 . 4 4 11 21 1 6 6 8 25 1 3 11 . 13 . 43 2 . 6 . 12 15 21 68 42 28 206 5 Fire 1133 | 14 64 54 14 118 8 . . . 3 9 6 . . 4 2 . 12 1 . 9 . 5 . . . . 18 8 10 . 7 1 411 355 Melee 645 | . . 6 . . 37 17 8 2 23 81 55 1 20 22 40 3 12 5 5 32 . 63 6 . 3 1 23 16 21 19 17 36 71 . Ram . | . . . . . . . . . . . . . . . . . . . . . . . . . . . . . . . . . . . Kick . | . . . . . . . . . . . . . . . . . . . . . . . . . . . . . . . . . . . Crush 7 | . 1 . 1 1 . . . . . . . . . . . . . . . . . . . . . . . . . . . . 4 . Escape Stasis 63 | . . . . 9 . . . . . . . . . . 7 . . . . 11 . . . . . . . . . . . . 36 . Rewire 4 | . . . . . . . . . . . . . . . . . . . . . . . . . . . . . . . . . 4 . Trap 41 | . . . . 39 . . . . 1 1 . . . . . . . . . . . . . . . . . . . . . . . . Miscellaneous 14 | . . . . . 2 . . . . 4 1 . . 1 4 . . . . . . . . . . . . . 1 1 . . . . Route ------- -11/Scrapyard -10/Materials (discovered 6 exits: [*Mat x3] / [*Min x2] / *Sub) -10/Subcaves (discovered 3 exits: *Mat x2 / Rec) -8/Materials (discovered 4 exits: *Fac x3 / *Sto) -8/Storage (discovered 2 exits: *Fac / Rec) -7/Factory (discovered 4 exits: *Fac x2 / *Low x2) -7/Lower Caves -7/Lower Caves (discovered 2 exits: *Fac / *Zio) -7/Zion -6/Proximity Caves -6/Factory (discovered 5 exits: *Fac / *Low x2 / *Ext x2) -6/Extension (discovered 2 exits: *Fac / *Cet) -6/Cetus (discovered 2 exits: *Fac / [*Arc]) -6/Archives (discovered 3 exits: *Fac / *Hub x2) -6/Hub_04(d) (discovered 4 exits: *Fac x4) -5/Factory (discovered 6 exits: *Fac x4 / *Upp x2) -5/Upper Caves -5/Upper Caves (discovered 2 exits: *Fac / *War) -5/Warlord -4/Proximity Caves -4/Factory (discovered 6 exits: *Res x4 / Upp x2) -4/Waste -4/Factory (discovered 6 exits: Res x4 / *Upp x2) -4/Upper Caves -4/Upper Caves (discovered 2 exits: Res / *Zhi) -4/Zhirov -3/Proximity Caves -3/Research (discovered 4 exits: Res / Arm / *Qua x2) -3/Quarantine (discovered 2 exits: *Res / *Sec) -3/Section 7 -2/Research (discovered 3 exits: Acc / *Tes x2) -2/Testing -1/Access -1/Command (discovered 3 exits: [*Sur x2] / [*Ac0]) -1/Access_0 History --------- Turn | Location | Event 12 | -11/Scrapyard | Discovered new exit (range 16) 205 | -11/Scrapyard | Entered Materials 301 | -10/Materials | Build established: Mutant 1125 | -10/Materials | Discovered new exit (range 12) 1238 | -10/Materials | Discovered new exit (range 13) 1238 | -10/Materials | Discovered new exit (range 10) 1415 | -10/Materials | Discovered new exit (range 16) 1734 | -10/Materials | Discovered new exit (range 10) 2022 | -10/Materials | Learned Storage emergency access door positions 2060 | -10/Materials | Learned 2 Storage zone layouts 2086 | -10/Materials | Learned location of 1 exit from Recycling 2110 | -10/Materials | Identified exit to Subcaves 2120 | -10/Materials | Learned location of 2 exits from Subcaves 2138 | -10/Materials | Learned location of 2 exits from Materials 2167 | -10/Materials | Learned location of 2 exits from Materials 2384 | -10/Materials | Repaired Lgt. Treads 2488 | -10/Materials | Entered Subcaves 2489 | -10/Subcaves | Identified exit to Materials 2489 | -10/Subcaves | Identified exit to Recycling 2501 | -10/Subcaves | Learned Materials garrison access intel 3557 | -10/Subcaves | Core integrity fell below 50% 3653 | -10/Subcaves | A swath of the cavern ceiling suddenly collapsed 4027 | -10/Subcaves | Shifting Twisted Machinery released Mak. Axe 4136 | -10/Subcaves | Visited Clippyterm 4145 | -10/Subcaves | Learned location of Extension (-6) 4145 | -10/Subcaves | Learned Factory trap positions 4322 | -10/Subcaves | Disturbed a concealed Subdweller 4878 | -10/Subcaves | Disturbed a concealed Subdweller 4878 | -10/Subcaves | Disturbed a concealed Subdweller 4915 | -10/Subcaves | Lost 4 parts (1p1n2u) 5439 | -10/Subcaves | Core integrity fell below 20% 5484 | -10/Subcaves | Lost 4 parts (2n2w) 5997 | -10/Subcaves | Shifting Twisted Machinery released Sub. Monowheel 6008 | -10/Subcaves | Curiously followed by a Cobbler waking with a query about "LVR3C" 6560 | -10/Subcaves | A swath of the cavern ceiling suddenly collapsed 6746 | -10/Subcaves | Shifting Twisted Machinery released Sub. Monowheel 8110 | -10/Subcaves | Visited 4L-MR0's lab 8142 | -10/Subcaves | Found Flightbrick 8589 | -10/Subcaves | Entered Materials 8589 | -8/Materials | Evolved 4 slots: Propulsion x2, Utility x2 8590 | -8/Materials | Identified exit to Factory 8590 | -8/Materials | Identified exit to Storage 8591 | -8/Materials | Loaded intel: 1 garrison access location 8918 | -8/Materials | Build established: Scavenger-Mutant 9125 | -8/Materials | Entered Storage 9733 | -8/Storage | Learned 4 Lower Caves zone layouts 9852 | -8/Storage | Learned location of 2 exits from Factory 9871 | -8/Storage | Garrison activated, responded to threat 9897 | -8/Storage | Learned 4 Factory zone layouts 9930 | -8/Storage | Learned 4 Factory zone layouts 10062 | -8/Storage | Learned location of 2 exits from Factory 10325 | -8/Storage | First assault squad dispatched 10425 | -8/Storage | Core integrity fell below 50% 11239 | -8/Storage | Lost 3 parts (2n1w) 11376 | -8/Storage | Entered Factory 11376 | -7/Factory | Evolved 2 slots: Propulsion x1, Utility x1 11377 | -7/Factory | Identified exit to Lower Caves 11377 | -7/Factory | Identified exit to Factory 11379 | -7/Factory | Loaded intel: 133 trap records 11380 | -7/Factory | Attached Flightbrick, gained temporary slots: Utility x3 11633 | -7/Factory | Found Prototype Launcher 11633 | -7/Factory | Identified Rocket Array 11853 | -7/Factory | Build established: Hacker-Mutant 11998 | -7/Factory | Fabricated Imp. Propulsion Shielding (x2) 12064 | -7/Factory | Found Powered Armor 12072 | -7/Factory | Entered Lower Caves 12326 | -7/Lower Caves | Learned location of 1 exit from Factory 12410 | -7/Lower Caves | Discovered new exit (range 9) 12418 | -7/Lower Caves | Spotted B-75 Beast 12424 | -7/Lower Caves | Entered another Lower Caves area 12463 | -7/Lower Caves | Discovered exit to Factory (range 14) 12500 | -7/Lower Caves | Encountered a Warlord checkpoint 12535 | -7/Lower Caves | Learned 4 Factory zone layouts 12549 | -7/Lower Caves | Learned location of 1 exit from Research 12549 | -7/Lower Caves | Learned Armory emergency access door positions 12549 | -7/Lower Caves | Learned Armory stockpile data 12549 | -7/Lower Caves | Learned Factory stockpile data 12549 | -7/Lower Caves | Learned Factory security intel 12585 | -7/Lower Caves | Learned 4 Factory zone layouts 12588 | -7/Lower Caves | Attracted the attention of an 0b10 outpost 12646 | -7/Lower Caves | Discovered new exit (range 5) 12654 | -7/Lower Caves | Found Alien Artifact 12654 | -7/Lower Caves | Identified Core Expander 12654 | -7/Lower Caves | Installed Core Expander, added new Utility slot 12692 | -7/Lower Caves | Entered Zion 12716 | -7/Zion | Discovered new exit (range 15) 12766 | -7/Zion | Learned Factory stockpile data 12847 | -7/Zion | Met Imprinter 12897 | -7/Zion | Found Prototype Device 12898 | -7/Zion | Identified Phasing AFG 12940 | -7/Zion | Found CR-A16's Pointy Stick 13048 | -7/Zion | Entered Proximity Caves 13061 | -6/Proximity Caves | Learned Factory terminal intel 13372 | -6/Proximity Caves | Spotted B-75 Beast 13418 | -6/Proximity Caves | Destroyed B-75 Beast 13468 | -6/Proximity Caves | Discovered exit to Factory (range 14) 13484 | -6/Proximity Caves | Entered Factory 13484 | -6/Factory | Evolved 2 slots: Propulsion x1, Utility x1 13485 | -6/Factory | Identified exit to Extension 13487 | -6/Factory | Identified exit to Lower Caves 13490 | -6/Factory | Loaded intel: 28 terminal locations 13517 | -6/Factory | Fabricated ECM Suite (x2) 13686 | -6/Factory | Spotted B-75 Beast 13702 | -6/Factory | Revealed the true nature of CR-A16's Pointy Stick 13706 | -6/Factory | Destroyed B-75 Beast 13752 | -6/Factory | Fabricated Imp. Propulsion Shielding (x2) 13893 | -6/Factory | Build established: Hacker-Sprinter 13901 | -6/Factory | Repaired Imp. Propulsion Shielding 14267 | -6/Factory | Discovered new exit (range 6) 14357 | -6/Factory | Central database locked down 14425 | -6/Factory | Fabricated Exp. Propulsion Shielding (x1) 14556 | -6/Factory | Discovered exit to Lower Caves (range 15) 14600 | -6/Factory | Learned 2 Hub_04(d) zone layouts 14632 | -6/Factory | Fabricated Exp. Propulsion Shielding (x1) 14634 | -6/Factory | Learned location of 2 exits from Lower Caves 14659 | -6/Factory | Learned location of 1 exit from Lower Caves 14672 | -6/Factory | Learned location of Upper Caves (-4) 14675 | -6/Factory | Learned Factory stockpile data 14676 | -6/Factory | Learned 4 Factory zone layouts 14677 | -6/Factory | Learned Factory stockpile data 14680 | -6/Factory | Learned 2 Extension zone layouts 14695 | -6/Factory | Learned 2 Extension zone layouts 14720 | -6/Factory | Learned location of Lower Caves (-6) 14734 | -6/Factory | Entered Extension 14984 | -6/Extension | Rescued a captive Derelict 14985 | -6/Extension | Rescued a captive Derelict 15047 | -6/Extension | Rescued a captive Derelict 15048 | -6/Extension | Rescued a captive Derelict 15204 | -6/Extension | Spotted B-75 Beast 15258 | -6/Extension | Spotted B-75 Beast 15260 | -6/Extension | Destroyed B-75 Beast 15269 | -6/Extension | Destroyed B-75 Beast 15281 | -6/Extension | Rescued A7 15358 | -6/Extension | Rescued a captive Derelict 15373 | -6/Extension | Learned Hub_04(d) terminal intel 15438 | -6/Extension | Learned 4 Lower Caves zone layouts 15521 | -6/Extension | Discovered new exit (range 10) 15522 | -6/Extension | Discovered new exit (range 6) 15593 | -6/Extension | Learned location of Warlord (-5) 15618 | -6/Extension | Entered Cetus 15618 | -6/Cetus | Accompanied by 14 allies (A7) 15623 | -6/Cetus | Acquired a Cetus Manufacturing Module code from A7 15640 | -6/Cetus | Spotted Cetus Guard 15640 | -6/Cetus | Spotted Cetus Guard 15642 | -6/Cetus | Spotted Cetus Guard 15642 | -6/Cetus | Spotted Cetus Guard 15645 | -6/Cetus | Allies destroyed Cetus Guard 15650 | -6/Cetus | Allies destroyed Cetus Guard 15656 | -6/Cetus | Allies destroyed Cetus Guard 15660 | -6/Cetus | Allies destroyed Cetus Guard 15682 | -6/Cetus | Lost 5 allies 15686 | -6/Cetus | Started Cetus Manufacturing Module 15692 | -6/Cetus | Escorted A7 to Cetus Mainframe 15696 | -6/Cetus | Discovered new exit (range 15) 15711 | -6/Cetus | Manufactured an Enhanced Grunt 15736 | -6/Cetus | Manufactured an Enhanced Grunt 15748 | -6/Cetus | Spotted Cetus Guard 15748 | -6/Cetus | Spotted Cetus Guard 15761 | -6/Cetus | Manufactured an Enhanced Grunt 15774 | -6/Cetus | Allies destroyed Cetus Guard 15781 | -6/Cetus | Discovered new exit (range 16) 15783 | -6/Cetus | Met Revision 17 15786 | -6/Cetus | Manufactured an Enhanced Grunt 15811 | -6/Cetus | Manufactured an Enhanced Grunt 15873 | -6/Cetus | Entered Archives 15873 | -6/Archives | Accompanied by 11 allies (A7) 15878 | -6/Archives | Received a hacking code to weaken MAIN.C 15955 | -6/Archives | Discovered new exit (range 15) 15962 | -6/Archives | Discovered new exit (range 14) 16002 | -6/Archives | Discovered new exit (range 14) 16047 | -6/Archives | Build established: Commander-Sprinter 16351 | -6/Archives | Build established: Commander-Mutant 18958 | -6/Archives | Entered Hub_04(d) 18958 | -6/Hub_04(d) | Accompanied by 10 allies 18960 | -6/Hub_04(d) | Loaded intel: 15 terminal locations 19113 | -6/Hub_04(d) | Discovered new exit (range 16) 19115 | -6/Hub_04(d) | Discovered new exit (range 16) 19159 | -6/Hub_04(d) | Discovered new exit (range 13) 19481 | -6/Hub_04(d) | Build established: Hacker-Sprinter 19573 | -6/Hub_04(d) | Learned Extension garrison access intel 19640 | -6/Hub_04(d) | Discovered new exit (range 12) 19654 | -6/Hub_04(d) | Learned location of 1 exit from Upper Caves 19679 | -6/Hub_04(d) | Learned location of 2 exits from Archives 19720 | -6/Hub_04(d) | Learned Factory emergency access door positions 19754 | -6/Hub_04(d) | Learned 4 Upper Caves zone layouts 19787 | -6/Hub_04(d) | Network Hub disabled 19789 | -6/Hub_04(d) | Spotted Lightning 19789 | -6/Hub_04(d) | Spotted Lightning 19801 | -6/Hub_04(d) | Spotted Lightning 19887 | -6/Hub_04(d) | Network Hub disabled 19949 | -6/Hub_04(d) | Spotted Lightning 19970 | -6/Hub_04(d) | Network Hub disabled 19970 | -6/Hub_04(d) | Spotted Lightning 19970 | -6/Hub_04(d) | Spotted Lightning 19999 | -6/Hub_04(d) | Network Hub disabled 20012 | -6/Hub_04(d) | Entered Factory 20012 | -5/Factory | Evolved 2 slots: Utility x2 20013 | -5/Factory | Identified exit to Upper Caves 20057 | -5/Factory | Repaired Exp. Propulsion Shielding 20125 | -5/Factory | Discovered new exit (range 14) 20146 | -5/Factory | Identified exit to Factory 20176 | -5/Factory | Spotted B-75 Beast 20185 | -5/Factory | Destroyed B-75 Beast 20312 | -5/Factory | First assault squad dispatched 20420 | -5/Factory | Repaired Exp. Propulsion Shielding? 20475 | -5/Factory | Build established: Wizard-Mutant 20476 | -5/Factory | Discovered exit to Factory (range 13) 20768 | -5/Factory | Repaired Corrupted Lrg. Storage Unit? 20817 | -5/Factory | Fabricated Exp. Hacking Suite? 20841 | -5/Factory | Repaired Nuclear Pulse Array 20932 | -5/Factory | Repaired Exp. Propulsion Shielding? 21067 | -5/Factory | Fabricated Adv. Gravity Neutralizer? 21085 | -5/Factory | Loaded intel: 4 scanalyzer locations 21118 | -5/Factory | Fabricated Exp. Propulsion Shielding? 21151 | -5/Factory | Learned Factory emergency access door positions 21254 | -5/Factory | Learned location of Quarantine (-3) 21290 | -5/Factory | Learned Factory emergency access door positions 21314 | -5/Factory | Learned 2 Proximity Caves zone layouts 21330 | -5/Factory | Learned Research security intel 21358 | -5/Factory | Learned Research security intel 21358 | -5/Factory | Fabricated Exp. Terrain Scan Processor? 21396 | -5/Factory | Learned location of 1 exit from Research 21427 | -5/Factory | Repaired Lgt. Neutrino Core 21472 | -5/Factory | Found Imp. Powered Armor 21502 | -5/Factory | Learned Extension interactive machine intel 21509 | -5/Factory | Repaired Exp. Propulsion Shielding 21545 | -5/Factory | Entered Upper Caves 21546 | -5/Upper Caves | Identified exit to Upper Caves 21566 | -5/Upper Caves | Found Alien Artifact 21566 | -5/Upper Caves | Identified Dimensional Node Initializer 21566 | -5/Upper Caves | Initialized slip node 21597 | -5/Upper Caves | Encountered a Warlord checkpoint 21650 | -5/Upper Caves | Learned 4 Factory zone layouts 21731 | -5/Upper Caves | Spotted B-75 Beast 21744 | -5/Upper Caves | Destroyed B-75 Beast 21759 | -5/Upper Caves | Entered another Upper Caves area 22054 | -5/Upper Caves | Attracted the attention of an 0b10 checkpoint 22249 | -5/Upper Caves | Discovered new exit (range 8) 22251 | -5/Upper Caves | Encountered a Warlord checkpoint 22339 | -5/Upper Caves | Entered Warlord 22358 | -5/Warlord | System corruption cleaned by Quarantine Array 22505 | -5/Warlord | Met Warlord 22516 | -5/Warlord | Found Prototype Device 22516 | -5/Warlord | Identified Exp. Focal Shield 22526 | -5/Warlord | Warlord's base attacked by MAIN.C 22527 | -5/Warlord | Found Prototype Processor 22527 | -5/Warlord | Identified Exp. Target Analyzer 22530 | -5/Warlord | Found Prototype Processor 22530 | -5/Warlord | Identified Exp. Targeting Computer 22540 | -5/Warlord | Found Prototype Hackware 22540 | -5/Warlord | Identified System Mapper 22626 | -5/Warlord | Found Prototype Piercing Weapon 22626 | -5/Warlord | Identified Vortex Lance 22666 | -5/Warlord | Opened side exit 22694 | -5/Warlord | Discovered new exit (range 10) 22717 | -5/Warlord | Entered Proximity Caves 22720 | -4/Proximity Caves | Spotter reported a threat 22781 | -4/Proximity Caves | Spotted B-86 Titan 22790 | -4/Proximity Caves | Attracted the attention of an 0b10 checkpoint 22805 | -4/Proximity Caves | Build established: Wizard-Sprinter 22848 | -4/Proximity Caves | Entered Factory 22848 | -4/Factory | Evolved 2 slots: Utility x2 22849 | -4/Factory | Identified exit to Upper Caves 22922 | -4/Factory | Identified exit to Research 23015 | -4/Factory | Fabricated Exp. Propulsion Shielding (x1) 23067 | -4/Factory | Spotted B-86 Titan 23153 | -4/Factory | Central database locked down 23233 | -4/Factory | Learned 2 Proximity Caves zone layouts 23251 | -4/Factory | Learned location of 1 exit from Proximity Caves 23258 | -4/Factory | Loaded intel: 233 machine locations 23285 | -4/Factory | Learned Research fabricator intel 23369 | -4/Factory | Spotted B-86 Titan 23426 | -4/Factory | Manually triggered Chute Trap 23426 | -4/Factory | Sucked down chute 23426 | -4/Factory | Entered Waste 23427 | -4/Waste | Identified exit to Factory 23431 | -4/Waste | Spotted C-40 Crusher 23434 | -4/Waste | Spotted C-40 Crusher 23436 | -4/Waste | Spotted C-40 Crusher 23438 | -4/Waste | Spotted C-40 Crusher 23439 | -4/Waste | Crushed by Compactor (1 part destroyed, 2 dropped) 23441 | -4/Waste | EMP discharged 23451 | -4/Waste | Spotted C-40 Crusher 23457 | -4/Waste | Entered Factory 23492 | -4/Factory | System corruption reached 10% 23538 | -4/Factory | Discovered exit to Upper Caves (range 9) 23621 | -4/Factory | Build established: Wizard-Mutant 23643 | -4/Factory | Fabricated Exp. Propulsion Shielding? 23831 | -4/Factory | Found Heavy Servo Lattice 23990 | -4/Factory | Found Exp. Hacking Suite 24014 | -4/Factory | Found Prototype Device 24015 | -4/Factory | Found Prototype Device 24017 | -4/Factory | Spotted B-86 Titan 24073 | -4/Factory | Identified Adv. EM Disruption Field (x2) 24207 | -4/Factory | Search patrols dispatched 24303 | -4/Factory | Spotted B-86 Titan 24310 | -4/Factory | Destroyed B-86 Titan 24505 | -4/Factory | Fabricated Multitool (x1) 24781 | -4/Factory | Cargo convoy interrupted 25000 | -4/Factory | Destroyed B-86 Titan 25022 | -4/Factory | Repaired Field Propulsion Array? 25103 | -4/Factory | Repaired Field Propulsion Array? 25157 | -4/Factory | Core integrity fell below 50% 25167 | -4/Factory | Entered Upper Caves 25195 | -4/Upper Caves | Learned Research security intel 25228 | -4/Upper Caves | Learned Research trap positions 25231 | -4/Upper Caves | Ambushed by wild Derelicts 25271 | -4/Upper Caves | Learned 6 Proximity Caves zone layouts 25271 | -4/Upper Caves | Learned Research stockpile data 25271 | -4/Upper Caves | Learned Factory terminal intel 25271 | -4/Upper Caves | Learned Armory terminal intel 25275 | -4/Upper Caves | Attracted the attention of an 0b10 base 25414 | -4/Upper Caves | Discovered new exit (range 15) 25419 | -4/Upper Caves | Entered another Upper Caves area 25474 | -4/Upper Caves | Attracted the attention of an 0b10 outpost 25501 | -4/Upper Caves | Discovered new exit (range 10) 25505 | -4/Upper Caves | Entered Zhirov 25505 | -4/Zhirov | Discovered new exit (range 3) 25512 | -4/Zhirov | Met Zhirov 25519 | -4/Zhirov | Learned location of Testing (-2) 25519 | -4/Zhirov | Learned location of Command (-1) 25524 | -4/Zhirov | Zhirov requested help retrieving the SGEMP Prototype 25529 | -4/Zhirov | Found Alien Artifact 25529 | -4/Zhirov | Identified Integrated Reactor 25529 | -4/Zhirov | Installed Integrated Reactor, increased core energy generation (+10) 25536 | -4/Zhirov | Found Alien Artifact 25589 | -4/Zhirov | Entered Proximity Caves 25644 | -3/Proximity Caves | Entered Research 25644 | -3/Research | Evolved 2 slots: Utility x2 25645 | -3/Research | Identified exit to Research 25645 | -3/Research | Identified exit to Quarantine 25646 | -3/Research | Loaded intel: 105 trap records 25649 | -3/Research | Loaded intel: 4 fabricator locations 25718 | -3/Research | Spotted B-86 Titan 25721 | -3/Research | Destroyed B-86 Titan 25795 | -3/Research | Fabricated Assault Drone Bay (x1) 25844 | -3/Research | Revision forces began assault on 0b10 25877 | -3/Research | Met up with Revision 17++ 25901 | -3/Research | Fabricated Graviton Reactor? 25969 | -3/Research | Found Prototype Device 25969 | -3/Research | Identified Imp. Particle Accelerator 25972 | -3/Research | Found Prototype Processor 25972 | -3/Research | Identified Spectral Analyzer 25975 | -3/Research | Found Spectral Analyzer 26020 | -3/Research | Identified exit to Armory 26169 | -3/Research | Entered Quarantine 26184 | -3/Quarantine | Found Alien Artifact 26215 | -3/Quarantine | Identified Subatomic Replicator 26215 | -3/Quarantine | Identified Transdimensional Reconstructor 26232 | -3/Quarantine | Found Transdimensional Reconstructor 26319 | -3/Quarantine | Repaired Exp. Utility Shielding 26357 | -3/Quarantine | Repaired Graviton Reactor 26403 | -3/Quarantine | Found Alien Slashing Weapon 26403 | -3/Quarantine | Identified Sigix Broadsword 26434 | -3/Quarantine | Found Alien Artifact 26436 | -3/Quarantine | Identified Core Reset Matrix 26436 | -3/Quarantine | Used Core Reset Matrix 26440 | -3/Quarantine | Detected hypermatrix surge 26440 | -3/Quarantine | Sensed 13 artifacts in vicinity 26446 | -3/Quarantine | Met incapacitated Sigix Warrior 26446 | -3/Quarantine | Lockdown squad dispatched 26447 | -3/Quarantine | Acquired the access code to the Sigix quarantine chamber 26448 | -3/Quarantine | Unlocked Sigix quarantine chamber 26449 | -3/Quarantine | Found Sigix Containment Pod 26542 | -3/Quarantine | Repaired Exp. Utility Shielding 26582 | -3/Quarantine | Spotted Alpha 7 26616 | -3/Quarantine | Discovered exit to Research (range 24) 26680 | -3/Quarantine | Spotted Fortress 26706 | -3/Quarantine | Discovered new exit (range 6) 26748 | -3/Quarantine | Entered Section 7 26749 | -3/Section 7 | Sensed 17 artifacts in vicinity 26761 | -3/Section 7 | Found Integrated Reactor 26761 | -3/Section 7 | Installed Integrated Reactor, increased core energy generation (+10) 26798 | -3/Section 7 | Found Integrated Dissipator 26798 | -3/Section 7 | Installed Integrated Dissipator, increased core heat dissipation (+20) 26814 | -3/Section 7 | Spotted B-86 Titan 26815 | -3/Section 7 | Spotted S7 Guard 26819 | -3/Section 7 | Destroyed B-86 Titan 26895 | -3/Section 7 | Found Prototype Device 26895 | -3/Section 7 | Identified Exp. Shield Generator 26898 | -3/Section 7 | Found Exp. Shield Generator 26927 | -3/Section 7 | Found Integrated Mediator 26927 | -3/Section 7 | Installed Integrated Mediator, increased core attachment efficiency 26949 | -3/Section 7 | Found Spacefold Activator 26979 | -3/Section 7 | Spotted Executioner 26988 | -3/Section 7 | Spotted B-99 Colossus 26998 | -3/Section 7 | Search patrols dispatched 27014 | -3/Section 7 | Found Integrated Reactor 27014 | -3/Section 7 | Installed Integrated Reactor, increased core energy generation (+10) 27016 | -3/Section 7 | Found Integrated Reactor 27016 | -3/Section 7 | Installed Integrated Reactor, increased core energy generation (+10) 27018 | -3/Section 7 | Found Integrated Reactor 27018 | -3/Section 7 | Installed Integrated Reactor, increased core energy generation (+10) 27036 | -3/Section 7 | Found LRC Armor 27036 | -3/Section 7 | Installed LRC Armor, increased core integrity (+250) 27051 | -3/Section 7 | Spotted Alpha 7 27051 | -3/Section 7 | Spotted Alpha 7 27116 | -3/Section 7 | Found Exp. EM Disruption Field 27130 | -3/Section 7 | Found Prototype Launcher 27130 | -3/Section 7 | Identified Com. Tesla Bomb Launcher 27148 | -3/Section 7 | Found Integrity Redistributor 27160 | -3/Section 7 | Repaired Graviton Reactor? 27195 | -3/Section 7 | Repaired Lrn. Terrain Scanner 27217 | -3/Section 7 | Repaired Field Propulsion Array 27272 | -3/Section 7 | Discovered exit to Research (range 20) 27282 | -3/Section 7 | Entered Research 27282 | -2/Research | Warlord forces began assault on 0b10 27282 | -2/Research | Evolved 2 slots: Power x1, Utility x1 27344 | -2/Research | Met up with Warlord 27358 | -2/Research | Spotted B-90 Cyclops 27385 | -2/Research | Identified exit to Testing 27392 | -2/Research | Research machine network offline 27464 | -2/Research | Found Prototype Device 27467 | -2/Research | Identified Exp. Shock Absorption System 27477 | -2/Research | Discovered new exit (range 18) 27511 | -2/Research | Spotted B-90 Cyclops 27520 | -2/Research | Destroyed B-90 Cyclops 27556 | -2/Research | Found Prototype Device 27556 | -2/Research | Identified Exp. Force Field 27644 | -2/Research | Found Unknown Device 27644 | -2/Research | Identified Quantum Capacitor 27696 | -2/Research | Found Prototype Processor 27696 | -2/Research | Identified Exp. Core Analyzer 27706 | -2/Research | Found Prototype Processor 27706 | -2/Research | Identified Exp. Targeting Computer 27710 | -2/Research | Entered Testing 27727 | -2/Testing | Found Prototype Device 27727 | -2/Testing | Identified AEGIS Remote Shield 27777 | -2/Testing | Found Portable AFG 27822 | -2/Testing | Found Prototype Ballistic Cannon 27822 | -2/Testing | Identified Perforator 27869 | -2/Testing | Found Prototype Device 27879 | -2/Testing | Identified Adv. Kinecellerator 27910 | -2/Testing | Discovered new exit (range 21) 27921 | -2/Testing | Build established: Alien-Sprinter 27944 | -2/Testing | Found Prototype Device 27944 | -2/Testing | Identified Exp. ECM Suite 27993 | -2/Testing | Found Prototype Protection 27995 | -2/Testing | Found Prototype Protection 27995 | -2/Testing | Identified Med. Regenerative Plating 27998 | -2/Testing | Found Prototype Protection 27998 | -2/Testing | Identified Lgt. Regenerative Plating 28025 | -2/Testing | Entered Access 28025 | -1/Access | Evolved 2 slots: Power x1, Utility x1 28049 | -1/Access | Identified SHELL Armor 28094 | -1/Access | Spotted B-99 Colossus 28102 | -1/Access | Identified exit to Command 28416 | -1/Access | Entered Command 28727 | -1/Command | Found Unknown Launcher 28787 | -1/Command | Identified Gamma Bomb Array 28993 | -1/Command | Spotted B-99 Colossus 29001 | -1/Command | Destroyed B-99 Colossus 29009 | -1/Command | Found Unknown Protection 29009 | -1/Command | Identified Hvy. Insulated Plating 29012 | -1/Command | Found Unknown Protection 29012 | -1/Command | Identified Hvy. Reflective Plating 29036 | -1/Command | Found Quantum Capacitor 29193 | -1/Command | Used Subatomic Replicator to replicate Integrity Redistributor 29450 | -1/Command | First assault squad dispatched 29469 | -1/Command | Build established: Alien-Mutant 30050 | -1/Command | Destroyed 15 combat bots 30425 | -1/Command | Spotted Combat Programmer 30431 | -1/Command | Spotted Combat Programmer 30439 | -1/Command | Destroyed Combat Programmer 30443 | -1/Command | Destroyed Combat Programmer 30445 | -1/Command | Spotted M Guard 30445 | -1/Command | Spotted M Guard 30461 | -1/Command | Destroyed M Guard 30472 | -1/Command | Destroyed M Guard 30472 | -1/Command | All MAIN.C guards destroyed 30489 | -1/Command | Found Corrupted Zero-point Reactor 30493 | -1/Command | Found Corrupted Zero-point Reactor 30838 | -1/Command | Destroyed 10 combat bots 30852 | -1/Command | Disengaged cave seal 30852 | -1/Command | Derelicts emerged from the dark tunnel 30852 | -1/Command | Welcomed Warlord to Command 31071 | -1/Command | Warlord commented on Warlord statues 31201 | -1/Command | Met MAIN.C 31203 | -1/Command | Warlord shut down involuntarily 31211 | -1/Command | 0b10 Conduit disabled 31216 | -1/Command | MAIN.C activated Command garrisons 31265 | -1/Command | Lost 3 allies 31269 | -1/Command | Discovered new exit (range 41) 31269 | -1/Command | Discovered new exit (range 82) 31269 | -1/Command | Extracted map data and part IDs from MAIN.C's data core 31768 | -1/Command | Found Thermal Barrier 33026 | -1/Command | Found Corrupted Multirail 34936 | -1/Command | Found Exp. System Purifier 34940 | -1/Command | Found Exp. Targeting Computer 34949 | -1/Command | Found Vortex Chain Reactor 34952 | -1/Command | Found Zero-point Reactor 34977 | -1/Command | Found Exp. Phase Shifter 34984 | -1/Command | Found Adv. Kinecellerator 35891 | -1/Command | Attacked by Warlord forces 36073 | -1/Command | Found Prototype Ballistic Cannon 36073 | -1/Command | Identified Blast Cannon 36076 | -1/Command | Found Blast Cannon 36301 | -1/Command | Found Exp. Core Analyzer 36655 | -1/Command | Found Exp. Targeting Computer 37498 | -1/Command | Found Corrupted Quantum Capacitor 38613 | -1/Command | Found Multirail 39260 | -1/Command | Found Quantum Capacitor 39348 | -1/Command | Used Integrity Redistributor, redistributed integrity from core (-155) 40201 | -1/Command | Warped through subspace to slip node 40201 | -1/Command | Discovered new exit (range 4) 40206 | -1/Command | Entered Access_0 40207 | -1/Access_0 | Sensed 1 artifact in vicinity 40207 | -1/Access_0 | Met Architect 40225 | -1/Access_0 | Destroyed A8 40246 | -1/Access_0 | Architect warped through subspace 40296 | -1/Access_0 | Architect warped through subspace 40333 | -1/Access_0 | Architect warped through subspace 40379 | -1/Access_0 | Architect warped through subspace 40438 | -1/Access_0 | Architect warped through subspace 40476 | -1/Access_0 | Architect warped through subspace 40509 | -1/Access_0 | Architect warped through subspace 40533 | -1/Access_0 | Subspace Access Node disabled 40534 | -1/Access_0 | Used Integrity Redistributor, redistributed integrity from core (-197) 40535 | -1/Access_0 | Core integrity fell below 50% 40546 | -1/Access_0 | Architect warped through subspace 40589 | -1/Access_0 | Architect warped through subspace 40611 | -1/Access_0 | Architect warped through subspace 40638 | -1/Access_0 | Architect warped through subspace 40666 | -1/Access_0 | Architect warped through subspace 40719 | -1/Access_0 | Architect warped through subspace 40738 | -1/Access_0 | Subspace Access Node disabled 40772 | -1/Access_0 | Architect warped through subspace 40817 | -1/Access_0 | Architect warped through subspace 40868 | -1/Access_0 | Architect warped through subspace 40875 | -1/Access_0 | A6 warped into view 40890 | -1/Access_0 | Destroyed A6 40917 | -1/Access_0 | Architect warped through subspace 40959 | -1/Access_0 | Architect warped through subspace 40996 | -1/Access_0 | Architect warped through subspace 41016 | -1/Access_0 | Architect warped through subspace 41055 | -1/Access_0 | Core integrity fell below 20% 41064 | -1/Access_0 | Architect warped through subspace 41105 | -1/Access_0 | Architect warped through subspace 41110 | -1/Access_0 | Self-destructed Last Messages --------------- 41096_ Enhanced Sentry destroyed. 41098_ Penetrated by Quantum Shear. 41101_ Blast Slug penetrates Architect. 41101_ Blast Slug penetrates Earth. 41102_ Blast Slug penetrates Architect. 41104_ Penetrated by HV Slug. 41104_ Critical hit (Destroy). 41104_ Hdn. Centrium Heavy Treads destroyed. Architect warps through subspace. 41106_ Critical hit (Destroy). 41107_ Acquired 96 matter. 41107_ Acquired 7 matter. 41107_ Acquired 4 matter. 41107_ Acquired 8 matter. 41107_ Acquired 6 matter. 41107_ Acquired 7 matter. 41108_ Penetrated by HV Slug. 41108_ Critical hit (Destroy). 41108_ Penetrated by HV Slug. 41108_ Critical hit (Destroy). Map ----- +----------------------------------------------------+ | """ " " ############# " #" #" " | | ""############# #### " | | """######## ## " | | """"""""" "##### ### #"" # ## "" | | """ # "" *#### ## ## " "# ###" ### | | """### " ! ### """" ### | | " #####"""" !]!=!"## # "" "## | | ####### *! = ## # "" ## ##### | | ####### " = = ##""" "#" ##### | | #?##### "## ]!" #######" "#"###### | | ####### %!=! ####### # ###### | | ####### " *= ! ######## ""####### | | ####### # # ! !# ########### #"# "###### | | #### ### # = ########### # # ###### | | ## ## ## ; ##;######## # ## ##### | | ## ## ## #; ; ; ####"" ""#### | | ## # # ; ; #############" ## ### | | #### # # ; ############## ### ## | | ###### %; ; ; ; ############## #### # | | ##### ; ; ; ############## ###### | | ####### = ; ; ; ############## ###### | | ######## h ; ; ; # ###########" "##### | | ##### # ; ; ; ;; ;; ####### "" ### | | #### #### ;;;; % ;; ####### "" ### | | # ### ## =*! ;; ########" ##### | | # #### #### @ ] ; ######### ###### | | # #### #######;;; !!!* ; ######### ###### | | # ?######### *%] ! ;; ######## ###### | | # ######### !]== ;;######## #####? | | ?###?#### ########## ;######## ###### | | #?#?##### ########## #?### ###### | | ?######## ########## ;;# ;; ##### ###### | | #??###### ##########;;### ## ##### ?##### | | #?####### ########## ######## ##### ?###### | | #?####### ########## ########## ###### ###### | | ?######## ###########?########## ###?## #####? | | ?#?###? ###################### ##### ?#?# | | #?##? ###########?######?### ####? #?## ? | | ?#### ##########?############ #### ??#### ? | | ??#?### ###?########?########## ?### ?#?#? ? | | ??##### ################?###### #####? ??? | | ???#?## ?####################### # ? ?# ? | | ?????##? ###############?###### ? ? ?? | | ????? #?################## ### ? | | ?????? ??##?#######?##?##?## ? ##??### ? | | ??????????########?###? ##### ####?#? ?? ? | | ?????????##?##?###### ###### ##?#?# ? ?? | | ???????????#?## #?# ? #### ? #?#?##?? ??? | | ???????????#??? # ### ? ?## ##? ????? | | ??????????????????? ##?## #?#?# ?## ? ?????? | +----------------------------------------------------+ Best States ------------- Heat Dissipation 148 Energy Generation 135 Energy Capacity 1340 Matter Stores 300 Matter Capacity 300 Sight Range 22 Robot Scan Range 15 Terrain Scan Range 24 Terrain Scan Density 1010 ECM Strength 3 Jamming Range 16 Cloak Strength 4 Additional Mass Support 25 Armor Coverage 1800 Resistance: TH 50 Resistance: EM 75 Power Shielding 90 Propulsion Shielding 90 Utility Shielding 90 Weapon Shielding 90 Weapon Cycling 25 Phase Shifting 20 Evasion (%) 79 Targeting Accuracy 24 Melee Accuracy 8 Core Analysis 8 Recoil Reduction 6 Matter Filtering 30 Particle Charging 40 Kinecelleration 50 Salvage Targeting 3 Offensive Hacking 83 Defensive Hacking 28 Authchip Count 3 Trap Extractor Capacity 8 Item Schematics ----------------- Enh. Nova Cannon | -3/Quarantine | Hacked Exp. EM Disruption Field | -3/Quarantine | Hacked Antimissile System | -3/Quarantine | Hacked Adv. Heavy Siege Treads | -2/Testing | Hacked Quantum Reactor | -1/Access | Hacked Robot Schematics ------------------ X-82 Rainmaker | -3/Quarantine | Hacked Fabricated ------------ Imp. Propulsion Shielding | x2 | -7/Factory ECM Suite | x2 | -6/Factory | Authchip Imp. Propulsion Shielding | x2 | -6/Factory | Authchip Exp. Propulsion Shielding | x1 | -6/Factory | Authchip Exp. Propulsion Shielding | x1 | -6/Factory | Authchip Exp. Hacking Suite | x1 | -5/Factory | Authchip Adv. Gravity Neutralizer | x1 | -5/Factory | Authchip Exp. Propulsion Shielding | x1 | -5/Factory | Authchip Exp. Terrain Scan Processor | x1 | -5/Factory | Authchip Exp. Propulsion Shielding | x1 | -4/Factory Exp. Propulsion Shielding | x1 | -4/Factory | Authchip Multitool | x1 | -4/Factory | Authchip Assault Drone Bay | x1 | -3/Research | Authchip Graviton Reactor | x1 | -3/Research | Authchip Alien Tech Used ----------------- Core Expander Dimensional Node Initializer Integrated Reactor Sigix Broadsword Core Reset Matrix Integrated Dissipator Integrated Mediator LRC Armor Spacefold Activator Subatomic Replicator Integrity Redistributor Transdimensional Reconstructor Achievements -------------- Shocking Conclusion Challenges ------------ None Game ------ Seed AssembledAngularFlail Manual? 0 Play Time 10:26:26 Cumulative 425.6 hours Start 2024.10.27 @ 17:26:46 End 2024.11.01 @ 14:33:31 Sessions 12 Manual Loads 0 Difficulty Rogue Special Mode None Game No. 288 Rogue 283 Adventurer 5 Explorer 0 Win Type - Total 9 Types 4/0/5/0/0/0/0/0/0 Lore% 76 Gallery% 89 Achievement% 74 Wizard Run 0 Options --------- Layout 2 ASCII 0 Keyboard 0 Movement Mouse Keybinds 0 Fullscreen 2 Font 24/Smallcaps Map View 50x44 Zoom Use 0% Tactical HUD 1 Map Filters NONE Filters NONE Steam 1 RUN: f48f6449-e90c-421a-b2c2-636a5e3b586a